Cogmind - Beta 17 @@@ ROGUE MODE // 2026.08.17 @ 00:29:55 Player: Alicianrone Result: Heading to fleet! Performance ------------- Evolutions (9) 4500 Regions Visited (28) 5600 Robots Destroyed (515) 2575 Value Destroyed (28935) 28935 Prototype IDs (119) 2380 Alien Tech Used (11) 2200 Bonus (26239) 26239 TOTAL SCORE: 72429 Bonus ------- High Alert Combat Kills 8938 Follower Combat Kills 5736 Hunted by Unchained 500 Entered Garrisons 600 Used RIF Installer 2500 Network Hubs Disabled 200 Registered with UFD 300 Built Enhanced Grunts 300 A7 Reached Mainframe 300 Met R17 at Cetus 500 Found Hidden Lab 3000 Used Core Reset Matrix 3000 Met R17 at Research 2000 Win 3000 Friendly Fire -4635 Cogmind --------- Core Integrity 1568/1600 Matter 410/425 Energy 85/150 System Corruption 0% Temperature Cool (28) Movement Flying (14) Location To Fleet Rendezvous Parts ------- > --- POWER (2) -------- Backup Power VII Micro Antimatter Reactor > --- PROPULSION (7) --- Field Propulsion Drive Improved Diametric Drive Improved Diametric Drive Improved Diametric Drive Improved Diametric Drive Improved Diametric Drive Improved Diametric Drive > --- UTILITY (13) ----- Experimental Cooling System Large Storage Unit Advanced Weight Redist. System Experimental Optical Array Experimental Signal Interpreter Seismic Detector Experimental Core Analyzer Advanced Transmission Jammer Experimental EM Shield (fused) Advanced Hacking Suite Deep Network Scanner Improved System Shield Advanced Corruption Screen > --- WEAPON (3) ------- Sigix Broadsword Thermal Lance > --- INVENTORY (17) --- Improved Quantum Reactor Field Propulsion Drive Experimental Coolant Injector Advanced Energy Well (500) Experimental ECM Suite Advanced Powered Armor AEGIS Remote Shield Transdimensional Reconstructor Transdimensional Reconstructor Core Regenerator Subatomic Replicator Spacefold Activator Heavy Quantum Rifle Ragnarok Missile Launcher IN-MT5's Pitchfork "Insurrection" (12) Peak State ------------ > --- POWER ------------ Micro Antimatter Reactor Improved Quantum Reactor > --- PROPULSION ------- Linear Gravjet Antigrav Array Combat Linear Gravjet Combat Linear Gravjet Combat Linear Gravjet Combat Linear Gravjet > --- UTILITY ---------- Experimental Cooling System Large Storage Unit Experimental Optical Array Experimental Signal Interpreter Experimental Core Analyzer Advanced Transmission Jammer Advanced Phase Shifter Graphene Brace Experimental EM Shield Hacking Suite Advanced Hacking Suite Deep Network Scanner > --- WEAPON ----------- Heavy Quantum Rifle Sigix Broadsword > --- INVENTORY -------- Improved Quantum Reactor Experimental Coolant Injector Advanced Energy Well Experimental Terrain Scanner Experimental ECM Suite AEGIS Remote Shield Transdimensional Reconstructor Transdimensional Reconstructor Core Regenerator Subatomic Replicator Spacefold Activator Ragnarok Missile Launcher IN-MT5's Pitchfork "Insurrection" Thermal Lance [Rating: 219] Favorites ----------- Power Micro Fission Core Engine F-cell Engine Power Core Micro Fission Core Reactor Improved Quantum Reactor Propulsion Combat Linear Gravjet Treads Light Treads Leg Flexi-carbon Leg Wheel Wheel Hover Unit Combat Linear Gravjet Flight Unit Cooled Cesium-ion Thruster Utility Large Storage Unit Device Advanced Sensor Array Storage Large Storage Unit Processor Advanced Signal Interpreter Hackware Advanced Hacking Suite Protection Medium Regenerative Plating Artifact Phase Armor Weapon Thermal Lance Energy Gun Medium Laser Energy Cannon Warp Cannon Ballistic Gun Improved Heavy Machine Gun Ballistic Cannon Hypervelocity Gauss Cannon Launcher Tiamat Missile Launcher Special Weapon Guided Remote Datajack Impact Weapon Thunder Hammer Slashing Weapon DM-GVY's Chainsaw Piercing Weapon Thermal Lance Special Melee Weapon Advanced Datajack Build | -11 -10 -10 -9 -9 -9 -9 -6 -6 -6 -6 -6 -6 -6 -5 -5 -5 -5 -5 -5 -4 -4 -4 -3 -3 -2 -2 -2 -1 ------- Run | Yrd Mat Min Mat Sto Rec Scr Fac Was Fac Ext Cet Arc Hub Fac Gar Fac Gar Fac Gar Fac Arm Lab Res Tes Res Qua Sec Acc Slots Evolved 18 | . . . 2 . . . 6 . . . . . . 2 . . . . . 2 . . 2 . 2 . . 2 Power 1 | . . . . . . . . . . . . . . . . . . . . 1 . . . . . . . . Propulsion 5 | . . . 2 . . . 2 . . . . . . . . . . . . 1 . . . . . . . . Utility 11 | . . . . . . . 4 . . . . . . 2 . . . . . . . . 2 . 2 . . 1 Weapon 1 | . . . . . . . . . . . . . . . . . . . . . . . . . . . . 1 Parts Attached 436 | 7 6 5 21 13 2 11 35 2 10 . 7 4 5 1 21 16 25 34 30 6 24 5 52 10 5 20 36 23 Power 46 | 1 . 1 3 2 . 1 4 . 1 . 1 1 . . 3 . 2 2 3 1 8 . 6 1 1 1 2 1 Engine 12 | 1 . 1 2 1 . 1 2 . . . . . . . 2 . . . . . 2 . . . . . . . Core 15 | . . . 1 . . . 2 . . . . . . . 1 . 1 2 3 1 4 . . . . . . . Reactor 19 | . . . . 1 . . . . 1 . 1 1 . . . . 1 . . . 2 . 6 1 1 1 2 1 Propulsion 118 | 2 2 2 11 5 . 4 5 . 6 . . . 1 . 13 4 9 12 12 . 5 . 12 . . 1 4 8 Treads 18 | . 2 . 5 4 . . . . . . . . . . 2 . . . 5 . . . . . . . . . Leg 17 | . . 1 . . . . . . . . . . . . 7 . 3 . 6 . . . . . . . . . Wheel 9 | 2 . 1 5 1 . . . . . . . . . . . . . . . . . . . . . . . . Hover 36 | . . . . . . . . . . . . . 1 . 4 4 6 6 . . . . 9 . . 1 4 1 Flight 38 | . . . 1 . . 4 5 . 6 . . . . . . . . 6 1 . 5 . 3 . . . . 7 Utility 201 | 2 2 . 1 1 1 2 22 1 3 . 5 3 4 . 4 11 11 14 11 5 8 2 28 5 4 13 26 12 Device 92 | 1 . . . . . 1 8 1 1 . 1 3 3 . . 5 3 6 2 1 4 1 11 4 3 10 17 6 Storage 15 | 1 1 . . . . 1 1 . . . 2 . . . . . 1 . 1 1 . . 4 . . . 1 1 Processor 26 | . . . . . . . 6 . . . . . . . . 1 2 1 2 1 1 . 5 1 . . 3 3 Hackware 39 | . . . . 1 . . 3 . 1 . . . 1 . 1 4 4 5 3 1 3 1 5 . 1 . 3 2 Protection 27 | . 1 . 1 . 1 . 4 . 1 . 2 . . . 3 1 1 2 3 1 . . 3 . . 1 2 . Artifact 2 | . . . . . . . . . . . . . . . . . . . . . . . . . . 2 . . Weapon 71 | 2 2 2 6 5 1 4 4 1 . . 1 . . 1 1 1 3 6 4 . 3 3 6 4 . 5 4 2 Energy Gun 11 | 1 1 . 2 2 . 1 . . . . . . . . . . . . . . . . 1 . . 1 1 1 Energy Cannon 14 | . . 1 2 . . . . . . . . . . . 1 . . . . . . 2 3 3 . 1 . 1 Ballistic Gun 11 | 1 1 . 2 3 . 1 . . . . . . . . . . . . 2 . . . . . . . 1 . Ballistic Cannon 4 | . . . . . . . . . . . . . . . . . 1 2 . . 1 . . . . . . . Launcher 7 | . . 1 . . . . 2 1 . . . . . . . 1 . . . . 1 . . . . 1 . . Special Weapon 9 | . . . . . . 1 1 . . . 1 . . . . . 2 . . . 1 1 1 . . . 1 . Impact Weapon 6 | . . . . . . . . . . . . . . 1 . . . 2 1 . . . 1 . . 1 . . Slashing Weapon 7 | . . . . . 1 1 . . . . . . . . . . . 2 1 . . . . 1 . . 1 . Piercing Weapon 1 | . . . . . . . 1 . . . . . . . . . . . . . . . . . . . . . Special Melee Weapon 1 | . . . . . . . . . . . . . . . . . . . . . . . . . . 1 . . Unidentified Prototypes 83 | . . . 5 3 . 1 5 . 2 . 4 1 2 1 2 2 . 6 . . 1 6 16 4 1 10 9 2 Corrupted Parts 1 | . . . . . . . . . . . . 1 . . . . . . . . . . . . . . . . System Corruption 6 | . . . . . . . . . . . . 6 . . . . . . . . . . . . . . . . Parts Lost 79 | . 3 2 6 . . 1 4 . . 1 . . 4 . 7 1 7 6 9 . 3 . 8 1 1 2 8 5 Power 11 | . . . . . . 1 . . . . . . 1 . 2 . . . 2 . 1 . 3 . . . 1 . Propulsion 35 | . 2 1 4 . . . 2 . . 1 . . 3 . 3 1 1 3 5 . 2 . 2 1 . 1 3 . Utility 24 | . . . 1 . . . 2 . . . . . . . 2 . 2 2 1 . . . 3 . 1 1 4 5 Weapon 9 | . 1 1 1 . . . . . . . . . . . . . 4 1 1 . . . . . . . . . Highest Loss Streak 4 | . 1 2 3 . . 1 3 . . 1 . . 4 . 3 1 3 2 4 . 1 . 3 1 1 1 3 2 To Critical Strikes . | . . . . . . . . . . . . . . . . . . . . . . . . . . . . . Average Backups 12 | 2 7 13 13 13 13 7 7 10 9 9 13 13 13 14 12 13 14 14 14 14 14 12 13 13 13 13 14 16 Power . | . 1 2 . . . . . . . . . 1 . . . . . . . . . . . . . 1 . 1 Propulsion 1 | 1 1 1 3 6 5 2 . . . . . 1 1 2 . 1 1 1 1 . . . 1 . . 1 . . Utility 6 | . 3 7 7 4 4 3 3 6 5 5 7 7 7 7 5 7 9 9 7 11 10 9 7 7 7 6 6 6 Weapon 3 | . 1 2 2 3 3 1 2 3 2 3 4 3 3 5 5 4 3 3 3 2 2 1 3 3 3 3 3 3 Tool/Special . | . . . . . . . . . . . . . . . . . . . . . . . . . . . . . Unused Backups 50 | . . 1 6 . 1 16 3 1 1 . 4 . . . 1 . 1 2 1 . . 1 2 . . . . 9 Power 5 | . . . 1 . . 1 . . . . 1 . . . . . . . . . . . . . . . . 2 Propulsion 9 | . . 1 . . 1 1 2 . . . . . . . 1 . . 1 1 . . . . . . . . 1 Utility 24 | . . . 4 . . 11 . 1 1 . 1 . . . . . 1 1 . . . 1 2 . . . . 1 Weapon 8 | . . . 1 . . 3 1 . . . 2 . . . . . . . . . . . . . . . . 1 Tool/Special 4 | . . . . . . . . . . . . . . . . . . . . . . . . . . . . 4 Average Slot Usage (%) 91 | . 99 99 93 100 100 85 85 100 100 100 99 94 93 70 78 88 84 91 90 98 91 92 92 94 94 89 86 88 Engine 2 | . 14 14 8 6 . 5 3 6 5 6 4 . . . 3 . . . . . . . . . . . . . Core 2 | . . . 2 4 . . 1 . . . . . . . . 5 3 3 4 9 7 10 4 . . . . 2 Reactor 2 | . . . . . 11 3 . . . . 1 6 5 5 1 . 1 1 . . 1 . 3 9 7 8 5 5 Treads 4 | . 17 . 16 33 33 10 . . . . . . . . 4 . . . 5 . . . . . . . . . Leg 1 | . . 5 . . . . . . . . . . . . 18 . 4 . 6 . . . . . . . . . Wheel 2 | . 10 22 24 11 11 3 . . . . . . . . . . . . . . . . . . . . . . Hover 9 | . . . . . . . . . . . . . . 5 2 24 18 21 . . . . 19 27 25 22 24 6 Flight 14 | . . . . . . 30 33 40 40 40 40 40 34 17 1 . . 10 17 36 35 36 8 . . . . 19 Device 7 | . 1 3 4 . . 5 15 13 6 5 6 10 7 11 1 5 2 5 2 5 9 10 12 9 16 18 18 19 Storage 5 | . 14 14 11 11 11 4 3 6 6 6 6 6 6 5 5 5 5 5 5 5 5 5 4 4 4 4 4 4 Processor 12 | . . . . . . . 13 20 20 20 20 20 20 17 17 17 18 17 14 10 14 10 9 18 17 17 14 12 Hackware 5 | . . . . 10 . . 1 . 1 . . . 2 . . 10 8 11 10 18 3 2 12 4 5 4 6 13 Protection 6 | . 12 10 3 . 11 5 3 . 4 6 6 2 2 . 12 5 7 3 8 1 6 9 5 9 7 5 4 . Ballistic Gun 2 | . 14 13 16 18 21 5 . . . . . . . . . . . . . . . . . . . . . . Special Weapon 1 | . . . . . . . 1 6 2 . . . . . . 4 3 2 . 5 . . 2 2 1 . . . Slashing Weapon 2 | . . . . . . 11 4 5 5 6 6 3 5 5 1 4 1 . 4 3 . . . 1 . . 1 3 Piercing Weapon 1 | . . . . . . . . . 4 6 5 3 5 . . . . 2 . 1 4 4 4 3 4 2 2 . Peak Build Rating 219 | 7 9 10 21 33 33 40 95 95 99 97 108 114 110 107 129 114 115 112 110 121 133 146 174 189 207 212 214 219 Average Rating 105 | 5 7 9 16 26 31 31 64 94 94 96 102 101 102 102 95 103 98 100 96 113 123 127 159 181 200 194 199 202 On Entrance 97 | . 7 9 10 19 33 30 39 95 95 95 97 108 110 98 107 105 107 109 99 107 116 128 145 168 183 203 201 190 Avg Prop Armor Cover (%) 9 | . 7 8 13 23 20 22 1 . . . . . 13 13 8 3 3 3 7 . . . . . . . 4 2 Naked Turns . | . . . . . . . . . . . . . . . . . . . . . . . . . . . . . Heaviest Build 101 | 14 29 30 41 36 41 40 44 41 41 39 42 50 50 41 75 56 67 52 72 41 51 50 84 78 97 95 101 63 Greatest Support 225 | 20 40 20 36 20 12 21 52 36 53 42 53 53 68 38 115 68 70 59 225 42 61 45 105 101 101 101 101 78 Greatest Overweight (x) 7 | . 2 2 3 3 3 3 1 1 1 . 1 . 1 1 7 1 2 1 3 . 1 1 1 . 1 1 1 2 Average Overweight (x) . | . . 1 1 2 3 . . . . . . . . . . . . . . . . . . . . . . . Largest Inventory Capacity 17 | 8 15 15 15 15 15 15 10 10 10 10 15 15 15 15 15 15 15 15 15 15 15 15 15 15 15 15 17 17 Average Capacity 13 | 7 14 15 15 15 15 8 7 10 10 10 14 15 15 15 15 15 15 15 15 15 15 15 15 15 15 15 15 17 Most Carried 17 | 5 12 15 15 15 15 15 10 10 10 10 15 15 15 15 15 15 15 15 15 15 15 15 15 15 15 15 17 17 Average Carried 13 | 2 7 13 14 14 14 7 7 9 9 9 13 14 14 15 14 14 14 14 14 14 14 12 14 13 14 14 15 16 Final Capacity 17 | 8 15 15 15 15 15 5 10 10 10 10 15 15 15 15 15 15 15 15 15 15 15 15 15 15 15 15 17 17 Final Carried 17 | 5 12 15 15 15 15 5 10 10 10 10 15 15 15 15 15 15 15 15 15 13 15 15 15 15 15 15 17 15 Class Distribution -------------------- 24% | Scavenger-Mutant 17% | Hacker-Scout 12% | Mutant 11% | Scout 7% | Sprinter 4% | Scavenger-Scout 3% | Commander-Scout 3% | Hacker-Mutant Dominant Class ---------------- Mutant | -10/Materials Mutant | -10/Mines Scavenger-Mutant | -9/Materials Scavenger-Mutant | -9/Storage Scavenger-Mutant | -9/Recycling Sprinter | -9/Scraptown Scout | -6/Factory Scout | -6/Waste Scout | -6/Factory Commander-Scout | -6/Extension Commander-Gladiator | -6/Cetus Commander-Sprinter | -6/Archives Sprinter | -6/Hub_04(d) Sprinter | -5/Factory Scavenger-Mutant | -5/Garrison Scout | -5/Factory Mutant | -5/Garrison Scavenger-Scout | -5/Factory Scavenger-Mutant | -5/Garrison Bothacker-Sprinter | -4/Factory Machinist-Ninja | -4/Armory Hacker-Scout | -4/Lab Hacker-Scout | -3/Research Hacker-Scout | -3/Testing Scavenger-Mutant | -2/Research Hacker-Scout | -2/Quarantine Alien-Mutant | -2/Section 7 Wizard-Sprinter | -1/Access Resources | -11 -10 -10 -9 -9 -9 -9 -6 -6 -6 -6 -6 -6 -6 -5 -5 -5 -5 -5 -5 -4 -4 -4 -3 -3 -2 -2 -2 -1 ----------- Run | Yrd Mat Min Mat Sto Rec Scr Fac Was Fac Ext Cet Arc Hub Fac Gar Fac Gar Fac Gar Fac Arm Lab Res Tes Res Qua Sec Acc Matter Collected 12640 | 272 173 104 536 656 36 135 691 60 310 77 128 116 150 . 774 458 1387 922 1211 160 902 . 934 540 310 457 834 307 Remotely 10 | . . . . . . . . . . . . . . . . . . 10 . . . . . . . . . . Salvage Created 29368 | 81 779 184 836 1182 42 . 1931 47 529 912 121 390 568 . 1348 1176 1806 1369 2476 542 1372 . 1890 3042 1005 2169 2290 1281 Parts 1184 | 7 51 11 59 88 2 . 69 5 12 31 11 19 21 . 50 44 86 32 77 20 41 . 55 110 45 110 77 51 Haulers Intercepted 44 | . 2 . 3 5 . . 4 . 2 . . . 2 . . 4 . 2 . 2 . . 5 2 3 . 6 2 Recyclers Shooed 2 | . 1 . 1 . . . . . . . . . . . . . . . . . . . . . . . . . Parts Field Recycled . | . . . . . . . . . . . . . . . . . . . . . . . . . . . . . Retrieved Matter . | . . . . . . . . . . . . . . . . . . . . . . . . . . . . . Parts Self-Destructed . | . . . . . . . . . . . . . . . . . . . . . . . . . . . . . Prevented . | . . . . . . . . . . . . . . . . . . . . . . . . . . . . . Parts Restored . | . . . . . . . . . . . . . . . . . . . . . . . . . . . . . Kills | -11 -10 -10 -9 -9 -9 -9 -6 -6 -6 -6 -6 -6 -6 -5 -5 -5 -5 -5 -5 -4 -4 -4 -3 -3 -2 -2 -2 -1 ------- Run | Yrd Mat Min Mat Sto Rec Scr Fac Was Fac Ext Cet Arc Hub Fac Gar Fac Gar Fac Gar Fac Arm Lab Res Tes Res Qua Sec Acc Combat Hostiles Destroyed 357 | . 18 4 14 19 1 . 11 1 5 15 . 1 5 . 37 9 29 8 29 1 26 . 21 26 15 19 27 16 Melee 136 | . . . . . . . 7 1 4 13 . 1 3 . 8 7 7 2 18 1 12 . 5 15 5 7 9 11 Guns 49 | . 18 3 8 16 1 . . . . . . . . . . . . . 3 . . . . . . . . . Cannons 37 | . . . 3 . . . . . . . . . . . 2 . 14 6 4 . 5 . . 1 . 2 . . AOE 72 | . . 1 3 3 . . 3 . . . . . . . 18 . 4 . . . 5 . 9 2 7 . 12 5 Classes Destroyed 25 | 2 5 1 4 . . . 3 1 1 1 . . . . 2 . . . . . . . 3 . . 1 1 . Worker 15 | . . 1 1 . . . 3 . . . . . . . . . . . . 1 1 . 1 4 3 . . . Builder 8 | . . . 2 1 . . 1 . . . . . . . . . . . . . . . . 1 . . 2 1 Tunneler 4 | 1 . 1 . . . . 1 . . . . . . . . 1 . . . . . . . . . . . . Hauler 44 | . 2 . 3 5 . . 4 . 2 . . . 2 . . 4 . 2 . 2 . . 5 2 3 . 6 2 Recycler 20 | 1 . . 1 . . . 5 . . . . . . . . 1 . 5 . 1 . . 2 4 . . . . Mechanic 4 | . . . 1 1 . . . . . . . . . . . . . . . . . . . 1 . . 1 . Operator 27 | . 2 . 2 2 . . 1 . . . . 9 . . . 2 . . . 1 1 . 1 1 . 2 2 1 Watcher 32 | . 3 . 2 1 . . 4 . 1 . . . 2 . . . . 4 . 3 3 . 1 3 . 3 1 1 Swarmer 51 | . 6 . . . . . . . . . . . . . 4 . 4 2 3 . 6 . 6 3 7 . 5 5 Saboteur 5 | . . . . . . . . . . . . . . . 5 . . . . . . . . . . . . . Grunt 122 | . 12 4 8 11 . . 6 . 2 10 . . 1 . 13 5 7 4 7 . 6 . . 13 1 3 6 3 Brawler 7 | . . . . . . . . . . 1 . . . . 1 . 1 . 3 . . . . . . . 1 . Duelist 7 | . . . 1 . . . . . . . . . . . . . 1 . 1 . 3 . 1 . . . . . Protector 1 | . . . . . . . . 1 . . . . . . . . . . . . . . . . . . . . Sentry 48 | . . . 5 8 1 . 2 . 1 4 . 1 1 . 1 2 1 . 6 1 . . 3 . 2 . 4 5 Specialist 12 | . . . . . . . 1 . . . . . . . 3 . 2 . . . . . . 3 . 3 . . Hunter 27 | . . . . . . . 1 . 1 . . . . . 6 2 3 . 3 . 4 . 2 . . . 4 1 Programmer 49 | . . . . . . . 1 . 1 . . . 1 . 4 . 8 2 5 . 7 . 1 6 5 2 4 2 Behemoth 4 | . . . . . . . . . . . . . . . 1 . 2 . 1 . . . . . . . . . Quarantine Guard 10 | . . . . . . . . . . . . . . . . . . . . . . . . . . 10 . . S7 Guard 1 | . . . . . . . . . . . . . . . . . . . . . . . . . . . 1 . Lightning 2 | . . . . . . . . . . . . . 2 . . . . . . . . . . . . . . . Striker 6 | . . . . . . . . . . . . . . . . . . . . . . . 6 . . . . . Executioner 1 | . . . . . . . . . . . . . . . . . . . . . . . 1 . . . . . Alpha 7 2 | . . . . . . . . . . . . . . . . . . . . . . . . . . . 2 . Fortress 1 | . . . . . . . . . . . . . . . . . . . . . . . . . . 1 . . Protovariant L 1 | . . . . . . . . . . . . . . . . . . . . . . . . 1 . . . . Surgeon 1 | . . . . . . . . . . . 1 . . . . . . . . . . . . . . . . . Martyr 1 | . . . . . . . . . 1 . . . . . . . . . . . . . . . . . . . Revision 1 | . . . . . . . . . . . . . . . . . . . . . . . 1 . . . . . Best Kill Streak 13 | 2 5 2 8 6 1 . 7 1 2 4 . 5 2 . 12 4 5 5 4 2 7 . 4 9 13 6 11 4 Combat Bots Only 12 | . 3 2 6 6 1 . 4 1 2 4 . 1 2 . 12 3 5 3 4 1 7 . 4 5 5 6 9 4 Max Kills in Single Turn 6 | 1 2 1 2 2 1 . 5 1 1 1 1 1 1 . 4 2 4 1 1 1 5 . 2 1 6 1 4 3 Gunslinging . | . . . . . . . . . . . . . . . . . . . . . . . . . . . . . Exploded 5 | . . 1 2 2 . . 2 . . . . . . . 4 . 4 . . . 5 . 2 1 4 . 4 3 Melee 1 | . . . . . . . 1 1 1 1 . 1 1 . 1 1 1 1 1 1 1 . 1 1 1 1 1 1 Uniques/NPCs Destroyed 1 | . . . . . . . . . . . 1 . . . . . . . . . . . . . . . . . A7 (-6/Cetus) Combat | -11 -10 -10 -9 -9 -9 -9 -6 -6 -6 -6 -6 -6 -6 -5 -5 -5 -5 -5 -5 -4 -4 -4 -3 -3 -2 -2 -2 -1 -------- Run | Yrd Mat Min Mat Sto Rec Scr Fac Was Fac Ext Cet Arc Hub Fac Gar Fac Gar Fac Gar Fac Arm Lab Res Tes Res Qua Sec Acc Hostile Shots Fired 2024 | . 90 18 65 52 2 33 94 . 23 17 . . 19 . 170 17 261 56 267 . 86 . 128 138 78 120 196 94 Missed 802 | . 23 3 21 11 1 15 49 . 17 4 . . 2 . 51 6 95 12 73 . 38 . 49 84 45 70 92 41 Hits 1222 | . 67 15 44 41 1 18 45 . 6 13 . . 17 . 119 11 166 44 194 . 48 . 79 54 33 50 104 53 Melee 46 | . . . 1 . . . . . . 1 . . . . 2 . . 1 15 . 3 . 23 . . . . . Projectile 1176 | . 67 15 43 41 1 18 45 . 6 12 . . 17 . 117 11 166 43 179 . 45 . 56 54 33 50 104 53 Critical Strikes 58 | . 2 1 . . . 4 1 . . 2 . . . . 8 . 5 4 7 . 2 . 9 5 1 . 7 . Actively Blocked 6 | . . . . . . . . . . . . . . . . . . . . . . . 1 . . . 5 . Part Disruptions 2 | . . . . . . . . . . . . . . . 1 . . . 1 . . . . . . . . . Damage Taken 22970 | . 692 212 690 606 14 400 652 20 146 263 . . 552 . 2325 322 2389 1053 3509 . 662 . 2796 751 532 689 2578 1117 Core 2822 | . 132 57 164 114 . 94 105 10 . 77 . . 199 . 171 68 301 76 310 . 102 . 384 60 115 70 181 32 Absorbed by Shields 780 | . . . . . . . . . . . . . . . . . 221 . 190 . 30 . . . 214 125 . . Redirected to Shielding 462 | . . . . . . . . . . 27 . . . . . 38 55 . . . 8 . 201 24 22 9 78 . Ignored by Resistances 2634 | . . . . . . . . . . . . . . . 211 . 859 . 480 . 205 . 53 235 182 35 229 145 Regen/Repaired (Parts) 5655 | . . . . . . . . 128 166 9 25 . . . 596 230 367 485 488 . 187 84 108 782 227 423 435 915 Core Remaining (%) 58 | 100 . 24 . . . 7 . . . . . . 54 . . . . . 7 . . 100 . 65 . . 74 98 Volleys Fired 717 | 2 96 24 66 79 2 1 4 . . . 1 . 1 . 18 3 79 38 57 7 47 . 14 44 10 69 51 4 Largest 2 | 2 2 2 2 2 2 1 1 . . . 1 . 1 . 1 1 1 1 2 1 1 . 1 2 1 1 1 1 Hottest 100 | 60 70 80 88 60 30 . 39 . . . . . . . 70 70 70 51 70 10 51 . 100 100 46 100 100 70 Shots Fired 972 | 4 191 45 126 137 5 1 4 . . . 1 . 1 . 18 3 77 38 74 7 47 . 14 45 11 69 50 4 Gun 492 | 4 191 28 90 132 5 . . . . . . . . . . . . . 32 . . . . . . . 10 . Cannon 353 | . . 15 28 . . . . . . . . . . . 9 3 69 29 42 . 34 . 3 25 4 63 29 . Launcher 60 | . . 2 8 5 . . 4 . . . . . . . 9 . 1 . . . 1 . 8 3 4 1 10 4 Special 67 | . . . . . . 1 . . . . 1 . 1 . . . 7 9 . 7 12 . 3 17 3 5 1 . Kinetic 498 | 2 96 22 85 104 5 . . . . . . . . . . . 47 29 74 . 34 . . . . . . . Thermal 226 | . 60 21 28 . . . . . . . . . . . . . . . . . . . 3 20 4 50 40 . Explosive 60 | . . 2 8 5 . . 4 . . . . . . . 9 . 1 . . . 1 . 8 3 4 1 10 4 Electromagnetic 122 | 2 35 . 5 28 . . . . . . . . . . 9 3 22 . . . . . . 5 . 13 . . Piercing 1 | . . . . . . . . . . . . . . . . . . . . . 1 . . . . . . . Robot Hit Streak 33 | 2 10 8 13 20 17 18 20 . . . 21 . 22 . 33 4 13 5 16 10 13 . 5 10 . 5 5 8 Robot Miss Streak 5 | 1 5 2 2 4 . . . . . . . . . . 2 . 4 3 2 . 2 . 1 1 3 2 1 . Penetration Max 1 | . . . . . . . . . . . . . . . 1 1 1 1 1 . . . . . . . . . Secondary Targets 5 | . 3 1 . . . . . . . . . . . . . . . . 1 . . . . . . . . . Max Gunslinging Chain 1 | . 1 1 . . . . . . . . . . . . . . . . 1 . . . . . . . . . Capacitor 56 | . . . . . . . . . . . . . . . . . . . . . . . . . . 56 . . Shots Hit Robots 1222 | 2 113 32 93 85 5 1 38 7 20 26 14 15 20 . 54 26 77 42 143 27 71 . 66 84 25 39 58 39 Core Hits 681 | 2 50 13 54 44 1 . 98 1 5 12 4 6 5 . 38 14 37 21 58 7 30 . 25 38 19 31 49 19 Critical Kills 48 | . . . . . . . . . . 1 1 . . . 1 . 7 6 4 . 4 . 3 4 2 10 5 . Critical Parts Destroyed 36 | . 2 . . . . . . . . . . . . . 6 . 10 7 11 . . . . . . . . . Critical Strikes 149 | . 8 . . . . . 3 2 1 3 4 . 1 . 14 2 28 13 28 2 10 . 3 5 2 10 7 3 Burn 6 | . 6 . . . . . . . . . . . . . . . . . . . . . . . . . . . Meltdown 31 | . . . . . . . . . . 1 1 . . . . . . 1 . . 4 . 3 4 2 10 5 . Destroy 48 | . 2 . . . . . . . . . . . . . . . 18 12 16 . . . . . . . . . Blast 5 | . . . . . . . . . . . . . . . . . . . . . 5 . . . . . . . Corrupt 10 | . . . . . . . . . . . . . . . 2 . 8 . . . . . . . . . . . Smash 12 | . . . . . . . . . . . . . . . 7 . . . 5 . . . . . . . . . Sever 36 | . . . . . . . 3 2 1 2 3 . 1 . 5 2 2 . 7 2 . . . 1 . . 2 3 Impale 1 | . . . . . . . . . . . . . . . . . . . . . 1 . . . . . . . Melee Attacks 1001 | . . . . . . 2 58 7 22 37 14 18 23 . 73 41 62 31 113 27 57 3 105 84 34 46 82 62 Thermal 538 | . . . . . . . 17 . 14 30 3 5 19 . . 9 27 31 2 1 57 3 105 78 34 46 57 . Impact 85 | . . . . . . . . . . . . . . . 50 . . . 35 . . . . . . . . . Slashing 378 | . . . . . . 2 41 7 8 7 11 13 4 . 23 32 35 . 76 26 . . . 6 . . 25 62 Piercing . | . . . . . . . . . . . . . . . . . . . . . . . . . . . . . Sneak Attacks 163 | . . . . . . . 9 7 7 10 13 13 4 . 6 9 . 10 2 7 15 . 14 15 3 2 8 9 Combat Hostiles 41 | . . . . . . . 1 . 3 6 . . 1 . . 4 . 2 2 . 10 . 4 1 . . 3 4 Follow-up Attacks 22 | . . . . . . . . . 1 2 . 2 2 . . . . . 11 . . . . 4 . . . . Damage Inflicted 79388 | 25 1210 473 1819 2039 117 . 4323 630 1792 2556 961 1672 1752 . 5373 1998 3576 2174 5955 1392 5452 . 6366 7068 3168 4463 8221 4813 Guns 4892 | 25 1210 185 867 1689 117 . . . . . . . . . . . . . 763 . . . . . . . 36 . Cannons 7510 | . . 177 374 . . . . . . . . . . . 469 271 1639 371 442 . 809 . . 395 . 2037 526 . Explosions 12617 | . . 111 578 350 . . 1744 . . . . . . . 2570 . 408 . . . 424 . 1297 442 909 . 2942 842 Melee 54358 | . . . . . . . 2579 630 1792 2556 961 1672 1750 . 2334 1727 1529 1803 4750 1392 4210 . 5069 6231 2259 2426 4717 3971 Ramming 2 | . . . . . . . . . . . . . 2 . . . . . . . . . . . . . . . Kinetic 5749 | 10 496 124 813 1234 117 . . . . . . . . . . . 570 371 1205 . 809 . . . . . . . Thermal 37904 | . 470 238 415 86 . . 1367 . 1307 2307 220 334 1651 . . 672 1153 1803 . 160 4210 . 5069 6262 2259 4183 3738 . Explosive 11205 | . . 111 537 264 . . 459 . . . . . . . 2570 . 408 . . . 424 . 1297 442 909 . 2942 842 Electromagnetic 4002 | 15 244 . 54 455 . . 1036 . . . . . . . 469 271 1069 . . . . . . 109 . 280 . . Impact 2585 | . . . . . . . . . . . . . . . 1364 . . . 1221 . . . . . . . . . Slashing 17932 | . . . . . . . 1461 630 485 249 741 1338 99 . 970 1055 376 . 3529 1232 . . . 255 . . 1541 3971 Piercing 9 | . . . . . . . . . . . . . . . . . . . . . 9 . . . . . . . Highest Corruption 17 | . . . . 5 5 . 3 . 1 1 1 6 3 . 6 6 12 12 17 . 3 3 4 5 2 3 9 . Average Corruption 5 | . . . . 4 5 . 2 . 1 1 1 2 2 . 3 5 8 7 12 . 2 3 4 4 2 1 9 . Corruption Purged 26 | . . . . . . . 3 . . . . 7 . . . 5 1 7 . . . . . . . 3 . . Corruption Blocked . | . . . . . . . . . . . . . . . . . . . . . . . . . . . . . Effects 341 | . . . . 5 13 . 3 . 3 11 3 4 1 . 17 25 61 46 55 . 13 3 3 22 3 10 40 . Message Errors 74 | . . . . 1 2 . 1 . . 2 2 . . . 4 7 9 13 14 . 2 . . 5 1 4 7 . Matter Fused 88 | . . . . . 4 . . . . 5 . 2 . . 5 6 19 7 20 . 1 1 . 6 . 3 9 . Heat Flow Errors 37 | . . . . 1 3 . 1 . . . . 2 . . 1 2 4 4 5 . 3 . 1 1 1 2 6 . Energy Discharges 42 | . . . . 3 1 . . . . 1 1 . 1 . 2 1 6 7 11 . 2 . . 1 . . 5 . Parts Rejected 2 | . . . . . . . . . . . . . . . . . 2 . . . . . . . . . . . Parts Fused 5 | . . . . . . . . . 1 1 . . . . . 1 . 1 . . . . . . . . 1 . Data Loss (minor) 53 | . . . . . 2 . 1 . 2 2 . . . . 3 4 11 8 4 . 2 1 2 3 . . 8 . Data Loss (major) 19 | . . . . . . . . . . . . . . . 2 2 3 6 . . 2 . . 2 . . 2 . Misfires 7 | . . . . . 1 . . . . . . . . . . . 1 . 1 . . . . 2 1 . 1 . Alerts 8 | . . . . . . . . . . . . . . . . 2 3 . . . 1 1 . . . 1 . . Weapon Failures 6 | . . . . . . . . . . . . . . . . . 3 . . . . . . 2 . . 1 . Overload Shots . | . . . . . . . . . . . . . . . . . . . . . . . . . . . . . Overflow Damage 8085 | . . . 23 . . . 203 46 479 199 16 734 355 . 803 201 189 258 390 204 577 . 538 766 345 415 629 715 Projectiles 136 | . . . . . . . . . . . . . . . . 22 67 . . . 7 . . 39 . . 1 . Explosions 636 | . . . 23 . . . . . . . . . . . 216 . 46 . . . . . 16 110 58 . 153 14 Melee 7313 | . . . . . . . 203 46 479 199 16 734 355 . 587 179 76 258 390 204 570 . 522 617 287 415 475 701 Knockbacks 30 | . . . . . . . . . . . . . . . 3 . 10 6 5 . 6 . . . . . . . Impact 4 | . . . . . . . . . . . . . . . 2 . . . 2 . . . . . . . . . Kinetic 24 | . . . . . . . . . . . . . . . . . 10 6 2 . 6 . . . . . . . Secondary 2 | . . . . . . . . . . . . . . . 1 . . . 1 . . . . . . . . . Self-Inflicted Damage 385 | . . . 124 24 . . . . . . . . 1 . 184 . 45 . . . . . 7 . . . . . Shots 10 | . . . 4 1 . . . . . . . . . . 3 . 1 . . . . . 1 . . . . . Rammed 1 | . . . . . . . . . . . . . 1 . . . . . . . . . . . . . . . Targets Rammed 1 | . . . . . . . . . . . . . 1 . . . . . . . . . . . . . . . Kicked . | . . . . . . . . . . . . . . . . . . . . . . . . . . . . . Crushed . | . . . . . . . . . . . . . . . . . . . . . . . . . . . . . Highest Temperature 429 | 40 273 227 296 235 259 94 294 21 271 267 136 232 372 . 307 276 282 322 283 250 429 192 299 248 225 195 206 . Average Temperature 65 | 24 67 84 86 31 109 56 42 7 43 81 59 56 84 . 47 96 54 61 74 62 85 65 66 35 46 75 34 . Received Heat Transfer 3771 | . 279 138 234 237 9 147 129 . 51 81 . . 9 . 706 57 229 288 596 . 62 . 81 138 30 . 162 108 Effects 19 | . . . 1 2 1 . . . 4 . . . 2 . 1 3 . . . . 4 . 1 . . . . . Energy Bleed 5 | . . . 1 . 1 . . . . . . . 2 . . . . . . . . . 1 . . . . . Interference 13 | . . . . 2 . . . . 4 . . . . . 1 3 . . . . 3 . . . . . . . Matter Decay 1 | . . . . . . . . . . . . . . . . . . . . . 1 . . . . . . . Siege Activations . | . . . . . . . . . . . . . . . . . . . . . . . . . . . . . Martial Activations . | . . . . . . . . . . . . . . . . . . . . . . . . . . . . . Shielding Activations . | . . . . . . . . . . . . . . . . . . . . . . . . . . . . . Robots Disrupted 3 | . . . . . . . 3 . . . . . . . . . . . . . . . . . . . . . Combat Hostiles 1 | . . . . . . . 1 . . . . . . . . . . . . . . . . . . . . . Robots Corrupted 25 | . . . . . . . 2 . . . . . . . 8 2 6 . 4 . . . . 1 . 2 . . Combat Hostiles 20 | . . . . . . . . . . . . . . . 8 1 4 . 4 . . . . 1 . 2 . . Parts Fried 38 | . . . . 2 . . 4 . . . . . . . 11 2 8 . 6 . . . . . . 5 . . Impact Corruptions 23 | . . . . . . . . . . . . . . . 13 . . . 10 . . . . . . . . . Robots Melted 56 | . . . . . . . 1 . 1 2 1 . 2 . . 1 . 1 . . 4 . 11 7 5 11 9 . Combat Hostiles 42 | . . . . . . . 1 . 1 2 . . 2 . . 1 . . . . 4 . 7 7 3 8 6 . Parts Melted 190 | . 5 . . . . . 11 . 1 6 1 3 6 . . 5 2 8 . . 9 . 25 33 15 26 34 . Heat Transferred 48764 | . 1850 555 753 50 . . 1930 . 1560 2640 240 360 2040 . . 960 1920 1920 . 120 4320 . 7230 7902 3000 4659 4755 . Parts Sabotaged 10 | . . . . . . . . . . . . . . . 6 . . . . . 4 . . . . . . . Parts Stolen . | . . . . . . . . . . . . . . . . . . . . . . . . . . . . . Parts Stripped . | . . . . . . . . . . . . . . . . . . . . . . . . . . . . . Power Chain Reactions 4 | . . . 1 2 . . 1 . . . . . . . . . . . . . . . . . . . . . Alert | -11 -10 -10 -9 -9 -9 -9 -6 -6 -6 -6 -6 -6 -6 -5 -5 -5 -5 -5 -5 -4 -4 -4 -3 -3 -2 -2 -2 -1 ------- Run | Yrd Mat Min Mat Sto Rec Scr Fac Was Fac Ext Cet Arc Hub Fac Gar Fac Gar Fac Gar Fac Arm Lab Res Tes Res Qua Sec Acc Maximum Alert Level 5 | . 1 . 1 2 . . 3 1 3 4 3 1 1 . 4 3 5 4 4 3 4 . 2 3 4 4 4 4 Low Security (%) 20 | 100 69 100 97 17 100 . 75 24 25 . . . 87 100 7 . . . . . 2 . 33 . . . . . Level 1 14 | . 30 . 2 74 . . 19 75 9 . . 100 12 . . . . . . . 8 . 51 26 . . . . Level 2 12 | . . . . 8 . . . . 15 21 74 . . . 24 . 11 . . . 23 . 15 41 57 7 16 5 Level 3 32 | . . . . . . . 3 . 49 40 25 . . . 11 100 22 71 47 100 32 . . 31 39 45 60 83 Level 4 19 | . . . . . . . . . . 37 . . . . 56 . 37 28 52 . 32 . . . 2 47 23 11 Level 5 2 | . . . . . . . . . . . . . . . . . 29 . . . . . . . . . . . High Security . | . . . . . . . . . . . . . . . . . . . . . . . . . . . . . Max Security . | . . . . . . . . . . . . . . . . . . . . . . . . . . . . . Peak Influence 2019 | 10 274 110 208 412 168 . 768 249 1030 1396 751 322 233 107 1580 947 2019 1237 1569 1083 1375 . 682 944 1169 1230 1266 1201 Initial 1059 | . . 80 9 62 148 . . 249 119 473 751 222 70 93 74 829 583 1059 739 823 522 . . 380 521 666 630 742 Average 710 | . 141 37 125 317 98 . 148 215 622 951 643 264 161 101 986 860 1305 1089 1137 864 906 . 272 590 690 1001 971 872 Influence Increases 22598 | 10 647 150 517 778 110 . 1497 42 1426 1513 374 239 451 14 1656 444 1526 1015 960 602 1963 . 1388 1041 1117 1055 1186 877 Destroy 0b10 Robot/C 9980 | . 360 80 280 380 20 . 560 . 580 720 160 80 160 . 820 200 720 460 580 240 1000 . 440 560 340 380 540 320 Destroy 0b10 Robot/NC 910 | 10 35 10 60 50 . . 85 5 30 20 10 45 25 . . 40 10 60 30 40 25 . 50 105 30 45 65 25 Destroy Leader 1838 | . 110 20 100 122 . . 106 . 158 54 . . 58 . 40 66 60 84 70 70 156 . 122 60 66 116 114 86 Allied During Kill 2059 | . . . . . . . 122 . 521 556 170 112 56 . 20 1 25 67 . 63 336 . 2 6 2 . . . Trap Triggered on 0b10 10 | . . . . . . . . . . . . . . . . . . . . . . . . . 10 . . . Successful Hack 969 | . 19 . 8 36 . . 96 . 42 11 . . . 14 14 53 16 76 . 65 34 . 174 12 52 126 14 107 Select Force Hacks 230 | . 60 . . 30 90 . . . . . . . 50 . . . . . . . . . . . . . . . Disable Machine 1050 | . 30 . 15 90 . . 150 . . 90 15 . . . . . . 15 15 . 195 . 45 45 30 150 120 45 Anti-Garrison Action 1150 | . . . . . . . . . . . . . . . 400 . 400 . 200 . . . 150 . . . . . Destroy Structure 1632 | . 18 10 54 55 . . 18 37 5 2 4 2 12 . 287 24 115 28 5 4 52 . 180 78 117 93 273 159 Partial Spotted 840 | . . . . . . . 165 . 45 45 . . 75 . . 15 15 15 30 105 60 . 45 15 15 30 45 120 Lose Combat Pursuer 1530 | . 15 30 . 15 . . 195 . 45 15 15 . 15 . 75 45 165 210 30 15 105 . 180 60 255 15 15 15 Miscellaneous 400 | . . . . . . . . . . . . . . . . . . . . . . . . 100 200 100 . . Influence Decreases 21397 | 10 440 331 394 545 472 20 784 584 630 1138 1161 591 463 98 183 1191 340 1978 447 1104 1719 1311 712 790 860 1118 1069 914 Entered New Map 9770 | . . 127 17 87 234 20 . 464 52 494 591 333 133 98 33 751 250 960 317 746 545 1311 . 296 406 518 491 496 Time Decay 8126 | 10 410 184 326 458 238 . 484 100 398 434 190 198 180 . . 410 . 598 . 278 514 . 592 464 214 580 498 368 Search Patrol Dispatched 100 | . . . . . . . 100 . . . . . . . . . . . . . . . . . . . . . Lost Part 771 | . 30 20 51 . . . 40 . . 10 . . 40 . 70 10 70 60 90 . 30 . 80 10 10 20 80 50 Lost Ally 1880 | . . . . . . . 160 20 180 200 380 60 110 . 80 20 20 210 40 80 180 . 40 20 80 . . . Purge Threat 750 | . . . . . . . . . . . . . . . . . . 150 . . 450 . . . 150 . . . Squads Dispatched 134 | . 8 . 2 5 . . 9 . 7 2 . . 8 . . 7 . 10 . 3 15 . 19 7 10 3 9 10 Investigation 59 | . 5 . . 2 . . 3 . 4 . . . 5 . . 1 . 3 . 2 6 . 13 3 3 2 3 4 Extermination 26 | . . . . . . . 4 . 3 . . . 1 . . 2 . 3 . . 4 . . 2 2 1 2 2 Reinforcement 30 | . 3 . 2 2 . . 2 . . 1 . . 2 . . 2 . . . 1 1 . 6 . 4 . 2 2 Assault 18 | . . . . . . . . . . 1 . . . . . 2 . 4 . . 4 . . 2 1 . 2 2 Garrison 1 | . . . . 1 . . . . . . . . . . . . . . . . . . . . . . . . Intercept . | . . . . . . . . . . . . . . . . . . . . . . . . . . . . . Searches Triggered 1 | . . . . . . . 1 . . . . . . . . . . . . . . . . . . . . . Construction Impeded 2 | . . . . . . . 1 . . 1 . . . . . . . . . . . . . . . . . . Haulers Reinforced 7 | . . . . . . . 1 . . . . . . . . . . . . . . . 3 . 2 . . 1 Active Scanning Responses . | . . . . . . . . . . . . . . . . . . . . . . . . . . . . . Cargo Convoy Interrupts 1 | . . . . . . . 1 . . . . . . . . . . . . . . . . . . . . . Stealth | -11 -10 -10 -9 -9 -9 -9 -6 -6 -6 -6 -6 -6 -6 -5 -5 -5 -5 -5 -5 -4 -4 -4 -3 -3 -2 -2 -2 -1 --------- Run | Yrd Mat Min Mat Sto Rec Scr Fac Was Fac Ext Cet Arc Hub Fac Gar Fac Gar Fac Gar Fac Arm Lab Res Tes Res Qua Sec Acc Distress Signals 29 | . 2 . 1 3 . . 2 . . 2 1 . 1 . . . . . . 1 2 . 6 2 4 1 1 . Communications Jammed 53 | . . . . . . . . . . . . . . . . . . 20 . 12 . . . . . . . 21 Distress Signals 53 | . . . . . . . . . . . . . . . . . . 20 . 12 . . . . . . . 21 Times Spotted 643 | . 30 6 24 25 1 31 47 6 16 28 7 5 13 . 35 13 40 39 31 11 39 . 40 37 40 16 35 28 Peak Tracking Total 21 | . 6 2 6 4 . 21 11 6 4 5 4 1 5 . 10 3 7 10 4 4 11 . 5 7 12 4 12 9 Tactical Retreats 60 | . 1 1 . 1 . 1 7 . 1 1 1 . 1 . 3 2 6 6 2 1 5 . 7 2 8 1 1 1 Traps | -11 -10 -10 -9 -9 -9 -9 -6 -6 -6 -6 -6 -6 -6 -5 -5 -5 -5 -5 -5 -4 -4 -4 -3 -3 -2 -2 -2 -1 ------- Run | Yrd Mat Min Mat Sto Rec Scr Fac Was Fac Ext Cet Arc Hub Fac Gar Fac Gar Fac Gar Fac Arm Lab Res Tes Res Qua Sec Acc Traps Triggered 49 | . 2 . . 4 . . 13 . . 2 . . . . 2 1 3 6 5 . 1 . 3 3 2 1 . 1 Indirectly 7 | . . . . . . . 7 . . . . . . . . . . . . . . . . . . . . . Trap Hack Attempts 28 | . . . . . . . . . . . . . . . . . . . . . . . . . . 28 . . Triggered . | . . . . . . . . . . . . . . . . . . . . . . . . . . . . . Disarmed 6 | . . . . . . . . . . . . . . . . . . . . . . . 6 . . . . . Reprogrammed 12 | . . . . . . . . . . . . . . . . . . . . . . . . . 6 6 . . Reused 1 | . . . . . . . . . . . . . . . . . . . . . . . . . 1 . . . Traps Extracted . | . . . . . . . . . . . . . . . . . . . . . . . . . . . . . Installed . | . . . . . . . . . . . . . . . . . . . . . . . . . . . . . Triggered 1 | . . . . . . . . . . . . . . . . . . . . . . . . . 1 . . . Machines | -11 -10 -10 -9 -9 -9 -9 -6 -6 -6 -6 -6 -6 -6 -5 -5 -5 -5 -5 -5 -4 -4 -4 -3 -3 -2 -2 -2 -1 ---------- Run | Yrd Mat Min Mat Sto Rec Scr Fac Was Fac Ext Cet Arc Hub Fac Gar Fac Gar Fac Gar Fac Arm Lab Res Tes Res Qua Sec Acc Machines Disabled 96 | . 2 . 1 6 . 9 10 . . 8 1 . . . 6 . 4 1 3 . 13 1 4 3 3 10 8 3 Max in Single Turn 5 | . 1 . 1 1 . 1 5 . . 1 1 . . . 1 . 1 1 1 . 2 1 1 2 1 1 1 1 Garrison Access 11 | . . . . 1 . . . . 1 . . . . . . 1 . 1 . . . . 3 1 1 1 1 . Garrison Relay 13 | . . . . . . . . . . . . . . . 7 . 4 . 2 . . . . . . . . . Network Hub 1 | . . . . . . . . . . . . . 1 . . . . . . . . . . . . . . . Machines Repaired . | . . . . . . . . . . . . . . . . . . . . . . . . . . . . . Machines Dismantled . | . . . . . . . . . . . . . . . . . . . . . . . . . . . . . Machines Sabotaged 1 | . . . . . . . . . . . . . 1 . . . . . . . . . . . . . . . Overloaded Fab Kills . | . . . . . . . . . . . . . . . . . . . . . . . . . . . . . Hacking | -11 -10 -10 -9 -9 -9 -9 -6 -6 -6 -6 -6 -6 -6 -5 -5 -5 -5 -5 -5 -4 -4 -4 -3 -3 -2 -2 -2 -1 --------- Run | Yrd Mat Min Mat Sto Rec Scr Fac Was Fac Ext Cet Arc Hub Fac Gar Fac Gar Fac Gar Fac Arm Lab Res Tes Res Qua Sec Acc Machines Accessed 201 | . 5 1 2 12 3 3 21 . 16 5 . . 6 1 2 14 1 21 . 9 10 . 21 10 9 8 9 12 Terminals 103 | . 2 . 2 10 . . 12 . 9 5 . . 5 . 2 6 1 8 . 5 4 . 8 5 5 4 6 4 Fabricators 27 | . . . . . . . 2 . 2 . . . . . . 2 . 5 . 2 5 . 4 1 1 . . 3 Repair Stations 17 | . 1 . . . . . 1 . 2 . . . . . . 1 . 3 . . 1 . 2 1 1 1 1 2 Recycling Units 15 | . 2 . . 1 3 . 1 . 1 . . . . . . 1 . 2 . 1 . . 1 . 1 . . 1 Scanalyzers 16 | . . . . . . . 2 . 1 . . . . . . 1 . 1 . 1 . . 3 2 . 2 1 2 Garrison Access 19 | . . . . 1 . . 3 . 1 . . . 1 1 . 3 . 2 . . . . 3 1 1 1 1 . Total Hacks 586 | . 8 1 3 23 6 9 52 . 37 9 . . 10 1 5 39 4 66 . 33 29 . 86 31 32 35 24 43 Successful 314 | . 6 1 1 13 4 9 24 . 21 2 . . 4 1 2 24 2 30 . 13 13 . 58 14 17 24 9 22 Failed 270 | . 2 . 2 10 2 . 28 . 16 7 . . 6 . 3 15 2 36 . 20 16 . 27 17 15 11 15 20 Catastrophic 50 | . 1 . 1 1 . . 3 . 4 2 . . 2 . . 3 1 3 . 3 4 . 1 6 3 4 5 3 Database Lockouts 2 | . . . . . . . . . . . . . . . . . . . . . . . 1 . . . . 1 Manual 225 | . 3 . 3 9 5 . 21 . 8 5 1 . 7 . . 12 3 23 . 13 12 . 34 13 17 10 14 12 Terminals 301 | . 4 . 3 21 . . 29 . 18 9 . . 7 . 5 13 4 24 . 14 12 . 44 15 27 14 17 21 Fabricators 97 | . . . . . . . 10 . 6 . . . . . . 5 . 18 . 9 14 . 19 2 1 . . 13 Repair Stations 44 | . 2 . . . . . 1 . 4 . . . . . . 4 . 12 . . 3 . 4 5 1 4 1 3 Recycling Units 35 | . 2 . . 1 6 . 2 . 2 . . . . . . 4 . 6 . 5 . . 3 . 1 . . 3 Scanalyzers 63 | . . . . . . . 3 . 4 . . . . . . 8 . 3 . 5 . . 11 7 . 16 3 3 Garrison Access 36 | . . . . 1 . . 7 . 3 . . . 3 1 . 5 . 3 . . . . 5 2 2 1 3 . Terminal Hacks 113 | . 3 1 1 7 . 9 12 . 6 2 . . . . 2 8 2 5 . 2 1 . 22 2 10 5 4 9 Record 1 | . . . . . . 1 . . . . . . . . . . . . . . . . . . . . . . Part Schematic 4 | . . . . . . . 2 . . . . . . . . . . . . 1 . . 1 . . . . . Robot Analysis 9 | . . . . . . 7 1 . . . . . . . . . . . . . . . . . . 1 . . Prototype ID Bank 2 | . . . . 1 . . . . 1 . . . . . . . . . . . . . . . . . . . Open Door 12 | . . 1 . 6 . . 1 . . 1 . . . . . . . . . . . . . . . . 2 1 Level Access Points 2 | . . . . . . . . . . . . . . . . . . . . . . . 2 . . . . . Branch Access Points 11 | . . . 1 . . . . . . . . . . . . . . . . . . . 8 . 1 . . 1 Emergency Access Points 3 | . . . . . . . . . . . . . . . 1 . 1 . . . . . 1 . . . . . Machine Index 2 | . . . . . . . . . . . . . . . . . . . . . . . 1 . . . 1 . Terminal Index 7 | . . . . . . . 1 . 1 . . . . . . 1 . 1 . . . . 1 . 1 1 . . Fabricator Index 2 | . . . . . . . . . . . . . . . . 1 . . . . . . . . . . . 1 Garrison Index 1 | . . . . . . . . . . . . . . . . . . . . . . . 1 . . . . . Alert Level 5 | . . . . . . . 1 . 3 . . . . . . . . . . . . . . . . . . 1 Unreport Threat 6 | . . . . . . . . . . . . . . . . . . 1 . . . . . 1 3 1 . . Locate Traps 16 | . 2 . . . . . 2 . 1 1 . . . . . 3 . 1 . . . . 2 . 1 1 1 1 Disarm Traps 2 | . . . . . . . . . . . . . . . . . . . . . . . 2 . . . . . Reprogram Traps 1 | . . . . . . . . . . . . . . . . . . . . . . . . . 1 . . . Recall Investigation 5 | . . . . . . . . . . . . . . . . . . . . . . . . . 1 . . 4 Recall Extermination 1 | . . . . . . . . . . . . . . . . 1 . . . . . . . . . . . . Recall Reinforcements 1 | . . . . . . . . . . . . . . . . . . . . . . . . . 1 . . . Hauler Manifests 7 | . . . . . . . 3 . . . . . . . . 1 . . . . . . 1 . 1 1 . . Registered Components 4 | . . . . . . . 1 . . . . . . . . . . 1 . 1 . . 1 . . . . . Registered Prototypes 2 | . . . . . . . . . . . . . . . . 1 . . . . . . 1 . . . . . Zone Layout 3 | . 1 . . . . . . . . . . . . . . . . 1 . . 1 . . . . . . . Garrison Registry 2 | . . . . . . . . . . . . . . . 1 . 1 . . . . . . . . . . . Proto ID Catalog 1 | . . . . . . 1 . . . . . . . . . . . . . . . . . . . . . . Protovariant Controls 1 | . . . . . . . . . . . . . . . . . . . . . . . . 1 . . . . Fabricator Hacks 44 | . . . . . . . 5 . 4 . . . . . . 1 . 7 . 4 6 . 10 1 1 . . 5 Network Status 5 | . . . . . . . . . 1 . . . . . . 1 . . . 1 . . 1 . 1 . . . Load Schematic 23 | . . . . . . . 3 . 2 . . . . . . . . 4 . 2 3 . 5 1 . . . 3 Build 16 | . . . . . . . 2 . 1 . . . . . . . . 3 . 1 3 . 4 . . . . 2 Repair Station Hacks 25 | . 1 . . . . . . . 4 . . . . . . 2 . 3 . . 2 . 3 4 . 3 . 3 Scan Component 13 | . . . . . . . . . 2 . . . . . . 1 . 2 . . 1 . 2 2 . 2 . 1 Repair 10 | . . . . . . . . . 2 . . . . . . 1 . 1 . . 1 . 1 2 . 1 . 1 Refit 2 | . 1 . . . . . . . . . . . . . . . . . . . . . . . . . . 1 Recycling Unit Hacks 7 | . . . . . 1 . . . . . . . . . . 2 . 2 . . . . 1 . . . . 1 Report Inventory 1 | . . . . . . . . . . . . . . . . 1 . . . . . . . . . . . . Retrieve Components 6 | . . . . . 1 . . . . . . . . . . 1 . 2 . . . . 1 . . . . 1 Scanalyzer 44 | . . . . . . . 2 . 3 . . . . . . 3 . 3 . 3 . . 9 4 . 14 2 1 Insert Component 22 | . . . . . . . 1 . 2 . . . . . . 2 . 1 . 1 . . 6 2 . 6 1 . Analyze 15 | . . . . . . . 1 . 1 . . . . . . 1 . 1 . 1 . . 2 1 . 6 1 . Retrieve Study 7 | . . . . . . . . . . . . . . . . . . 1 . 1 . . 1 1 . 2 . 1 Garrison Access Hacks 22 | . . . . 1 . . . . 1 . . . . 1 . 5 . 3 . . . . 5 2 2 1 1 . Unlock Access 4 | . . . . . . . . . . . . . . 1 . 2 . 1 . . . . . . . . . . Seal Access 10 | . . . . 1 . . . . 1 . . . . . . 1 . 1 . . . . 2 1 1 1 1 . Coupler Status 8 | . . . . . . . . . . . . . . . . 2 . 1 . . . . 3 1 1 . . . Unauthorized Hacks 59 | . 2 . . 5 3 . 5 . 3 . . . 4 . . 3 . 7 . 4 4 . 8 1 4 1 2 3 Terminals 29 | . . . . 4 . . 2 . 2 . . . 4 . . 1 . 4 . 1 1 . 5 . 2 1 1 1 Assimilate 4 | . . . . . . . . . 1 . . . . . . . . 2 . . . . 1 . . . . . Botnet 17 | . . . . 3 . . 2 . 1 . . . . . . 1 . 2 . 1 . . 2 . 2 1 1 1 Disrupt 1 | . . . . . . . . . . . . . . . . . . . . . 1 . . . . . . . Operators 1 | . . . . . . . . . . . . . . . . . . . . . . . 1 . . . . . Skim 2 | . . . . 1 . . . . . . . . . . . . . . . . . . 1 . . . . . Sabotage 4 | . . . . . . . . . . . . . 4 . . . . . . . . . . . . . . . Fabricators 15 | . . . . . . . 3 . . . . . . . . 1 . 2 . 2 3 . 2 1 . . . 1 Prioritize 5 | . . . . . . . 1 . . . . . . . . . . . . 1 1 . 1 . . . . 1 Haulers 3 | . . . . . . . 1 . . . . . . . . 1 . . . . . . 1 . . . . . Recompile 7 | . . . . . . . 1 . . . . . . . . . . 2 . 1 2 . . 1 . . . . Repair Stations 2 | . . . . . . . . . . . . . . . . . . . . . . . . . 1 . 1 . Patch 2 | . . . . . . . . . . . . . . . . . . . . . . . . . 1 . 1 . Recycling Units 13 | . 2 . . 1 3 . . . 1 . . . . . . 1 . 1 . 1 . . 1 . 1 . . 1 Recyclers 7 | . . . . . . . . . 1 . . . . . . 1 . 1 . 1 . . 1 . 1 . . 1 Tunnel 6 | . 2 . . 1 3 . . . . . . . . . . . . . . . . . . . . . . . Scanalyzers . | . . . . . . . . . . . . . . . . . . . . . . . . . . . . . Garrison Access . | . . . . . . . . . . . . . . . . . . . . . . . . . . . . . Data Cores Recovered 7 | . . . . . . . 1 . . . . . . . . 1 . . . . 2 . . . . 1 1 1 Used 3 | . . . . . . . . . . . . . . . . 1 . . . . 2 . . . . . . . Hacking Detections 137 | . 1 . 2 8 . . 20 . 11 4 . . 4 . 1 7 . 14 . 8 7 . 14 7 8 7 5 9 Full Trace Events 28 | . . . . 1 . . 2 . 4 . . . 1 . . 1 . 1 . 1 4 . 6 2 1 1 1 2 Feedback Events 1 | . . . . . . . . . 1 . . . . . . . . . . . . . . . . . . . Corruption 1 | . . . . . . . . . 1 . . . . . . . . . . . . . . . . . . . Feedback Blocked . | . . . . . . . . . . . . . . . . . . . . . . . . . . . . . Robot Schematics Acquired 9 | . . . . . . . . . . . . . . . . . . . . . . . . 5 . 4 . . Robots Built . | . . . . . . . . . . . . . . . . . . . . . . . . . . . . . Authchips . | . . . . . . . . . . . . . . . . . . . . . . . . . . . . . Time . | . . . . . . . . . . . . . . . . . . . . . . . . . . . . . Total Robot Build Rating . | . . . . . . . . . . . . . . . . . . . . . . . . . . . . . Part Schematics Acquired 40 | . . . . . . 1 3 . 1 . . . . . . 1 . 1 . 2 . . 3 16 . 11 1 . Parts Built 19 | . . . . . . . 2 . 2 . . . . . . . . 4 . 1 3 . 5 . . . . 2 Authchips 7 | . . . . . . . 2 . . . . . . . . . . 2 . 1 1 . 1 . . . . . Time 1169 | . . . . . . . 152 . 73 . . . . . . . . 205 . 76 292 . 223 . . . . 148 Total Part Build Rating 122 | . . . . . . . 10 . 6 . . . . . . . . 28 . 5 18 . 37 . . . . 18 Part Studies Acquired 7 | . . . . . . . . . . . . . . . . . . 1 . 1 . . 1 1 . 2 . 1 Parts Repaired 10 | . . . . . . . . . 2 . . . . . . 1 . 1 . . 1 . 1 2 . 1 . 1 Time 575 | . . . . . . . . . 78 . . . . . . 26 . 136 . . 54 . 68 142 . 37 . 34 Parts Recycled . | . . . . . . . . . . . . . . . . . . . . . . . . . . . . . Recycled Matter . | . . . . . . . . . . . . . . . . . . . . . . . . . . . . . Retrieved Matter . | . . . . . . . . . . . . . . . . . . . . . . . . . . . . . Retrieved Components 28 | . . . . . 2 . . . . . . . . . . 3 . 6 . . . . 7 . . . . 10 Parts Scanalyzed 12 | . . . . . . . 1 . 2 . . . . . . 1 . 1 . 1 . . 2 1 . 2 1 . Part Schematics Acquired 12 | . . . . . . . 1 . 1 . . . . . . 1 . 1 . 1 . . 2 1 . 3 1 . Parts Damaged 3 | . . . . . . . . . . . . . . . . 1 . . . . . . 1 . . 1 . . Bothacking | -11 -10 -10 -9 -9 -9 -9 -6 -6 -6 -6 -6 -6 -6 -5 -5 -5 -5 -5 -5 -4 -4 -4 -3 -3 -2 -2 -2 -1 ------------ Run | Yrd Mat Min Mat Sto Rec Scr Fac Was Fac Ext Cet Arc Hub Fac Gar Fac Gar Fac Gar Fac Arm Lab Res Tes Res Qua Sec Acc Used RIF Installer 5 | . . . . . . . . . . . . . . . 2 . 2 . 1 . . . . . . . . . Hotswap 1 | . . . . . . . . . . . . . . . . . . . 1 . . . . . . . . . Signal Jammer 1 | . . . . . . . . . . . . . . . 1 . . . . . . . . . . . . . Structural Interface 1 | . . . . . . . . . . . . . . . . . 1 . . . . . . . . . . . Program Shield 1 | . . . . . . . . . . . . . . . . . 1 . . . . . . . . . . . Robots Hacked 28 | . . . . . . . . . . . . . . . . . 3 4 . 3 3 . 1 9 1 4 . . Non-combat 7 | . . . . . . . . . . . . . . . . . . 4 . 1 2 . . . . . . . Combat 12 | . . . . . . . . . . . . . . . . . 3 . . 2 1 . 1 3 1 1 . . Robot Hacks Applied 26 | . . . . . . . . . . . . . . . . . 3 4 . 3 8 . 1 3 3 1 . . parse_system 2 | . . . . . . . . . . . . . . . . . . . . . . . 1 1 . . . . drop_inventory 4 | . . . . . . . . . . . . . . . . . . 3 . 1 . . . . . . . . purge_threat 4 | . . . . . . . . . . . . . . . . . . . . . 4 . . . . . . . locate_traps 1 | . . . . . . . . . . . . . . . . . . . . . 1 . . . . . . . block_reporting 1 | . . . . . . . . . . . . . . . . . . . . . 1 . . . . . . . map_route 1 | . . . . . . . . . . . . . . . . . . 1 . . . . . . . . . . find_scanalyzer 3 | . . . . . . . . . . . . . . . . . . . . . . . . 2 . 1 . . amplify_resonance 1 | . . . . . . . . . . . . . . . . . . . . . . . . . 1 . . . wipe_record 2 | . . . . . . . . . . . . . . . . . . . . . . . . . 2 . . . overwrite_iff 2 | . . . . . . . . . . . . . . . . . 1 . . . 1 . . . . . . . formatsys_high 5 | . . . . . . . . . . . . . . . . . 2 . . 2 1 . . . . . . . Manual 12 | . . . . . . . . . . . . . . . . . . . . . . . . 8 . 4 . . Relay Couplers Released 61 | . . . . . . . . . . . . . . . 30 . 16 . 9 . . . 2 . 4 . . . Machine Destruction 61 | . . . . . . . . . . . . . . . 30 . 16 . 9 . . . 2 . 4 . . . Attached 12 | . . . . . . . . . . . . . . . 1 . 3 2 3 . 1 . 1 . 1 . . . Fabnet Peak Effective % . | . . . . . . . . . . . . . . . . . . . . . . . . . . . . . Robots Rewired 32 | . . . . . . . . . . 20 . . . . 4 . 3 . . 1 4 . . . . . . . Allies Hacked 5 | . . . . . . . 1 . . . . . . . . . . 3 . 1 . . . . . . . . Hacks Repelled . | . . . . . . . . . . . . . . . . . . . . . . . . . . . . . Allies | -11 -10 -10 -9 -9 -9 -9 -6 -6 -6 -6 -6 -6 -6 -5 -5 -5 -5 -5 -5 -4 -4 -4 -3 -3 -2 -2 -2 -1 -------- Run | Yrd Mat Min Mat Sto Rec Scr Fac Was Fac Ext Cet Arc Hub Fac Gar Fac Gar Fac Gar Fac Arm Lab Res Tes Res Qua Sec Acc Total Allies 120 | . . . . . . 1 11 18 2 34 5 . 3 . 4 1 6 8 2 12 5 . 2 4 2 . . . Largest Group 25 | . . . . . . 1 8 18 15 25 25 9 6 1 4 1 3 4 2 8 7 . 2 2 2 . . . Highest-Rated Group 958 | . . . . . . 89 80 638 551 818 958 486 359 10 272 10 150 193 84 181 306 . 26 20 20 . . . Highest-Rated Ally 159 | . . . . . . 89 10 50 46 159 159 96 96 10 68 10 68 64 46 64 64 . 16 10 10 . . . Total Orders 23 | . . . . . . 8 . . 2 4 3 2 . . . . . . . . 3 . 1 . . . . . STAY 9 | . . . . . . 4 . . 1 2 . 1 . . . . . . . . 1 . . . . . . . ROAM 1 | . . . . . . . . . . . 1 . . . . . . . . . . . . . . . . . FOLLOW 9 | . . . . . . 1 . . 1 2 2 1 . . . . . . . . 2 . . . . . . . EXPLORE 1 | . . . . . . . . . . . . . . . . . . . . . . . 1 . . . . . RETURN 3 | . . . . . . 3 . . . . . . . . . . . . . . . . . . . . . . Ally Attacks 1086 | . . . . . . 19 67 107 159 204 107 40 40 . 19 4 17 83 3 56 120 . 10 14 17 . . . Total Damage 25378 | . . . . . . 1323 917 4051 3032 3705 2452 1094 801 . 1052 30 722 1729 22 833 3129 . 121 167 198 . . . Kills 179 | . . . . . . 9 17 8 27 28 10 3 5 . 4 1 7 17 . 11 26 . 2 2 2 . . . Allies Corrupted 9 | . . . . . . . 3 . 2 . . . . . 1 . . 1 . 1 1 . . . . . . . Allies Melted 2 | . . . . . . . . . . . 1 . . . . . . . . . . . . 1 . . . . Intel | -11 -10 -10 -9 -9 -9 -9 -6 -6 -6 -6 -6 -6 -6 -5 -5 -5 -5 -5 -5 -4 -4 -4 -3 -3 -2 -2 -2 -1 ------- Run | Yrd Mat Min Mat Sto Rec Scr Fac Was Fac Ext Cet Arc Hub Fac Gar Fac Gar Fac Gar Fac Arm Lab Res Tes Res Qua Sec Acc Active Infowar (turns) 22687 | 7 77 139 359 4 . . 1116 211 952 1072 388 402 372 12 1688 992 1910 1916 870 598 1404 203 2382 1174 454 1795 1338 852 Optics 21316 | . . . . . . . 779 211 952 1072 388 402 372 12 1688 992 1910 1916 870 160 1394 203 2382 1174 454 1795 1338 852 Sensors 12900 | . . . . . . . 883 211 862 1027 66 48 55 12 35 901 1 1590 5 597 1089 203 2153 932 291 1726 213 . IFF 45 | . . . . . . . . . . . . . 43 . . 1 . . . . . . . . . . . 1 Terrain 2749 | . . . . . . . . . . . . . . . . . . . . . . . 1689 . 100 246 676 38 Seismic 967 | 7 77 139 359 4 . . . . . . . . . . . . . . . . . . . . . . . 381 T.N.C. 92 | . . . . . . . . . . . . . . . . . . . . . . . 92 . . . . . Cloaking 11 | . . . . . . . . . . . . . . . . . . . . . 10 . . . . 1 . . Jamming 924 | . . . . . . . . . . . . . . . . . . . . 1 . . . . . . 188 735 ECM 1 | . . . . . . . . . . . . . . . . . . . . . . . . . . . 1 . Robot Analysis Total 9 | . . . . . . 7 1 . . . . . . . . . . . . . . . . . . 1 . . Derelict Logs Recovered 2 | . . 2 . . . . . . . . . . . . . . . . . . . . . . . . . . Drone Launches 27 | . . . . . . 21 . . . . . . . . . . . . . . . . 6 . . . . . Drone Recoveries 5 | . . . . . . 5 . . . . . . . . . . . . . . . . . . . . . . Exploration | -11 -10 -10 -9 -9 -9 -9 -6 -6 -6 -6 -6 -6 -6 -5 -5 -5 -5 -5 -5 -4 -4 -4 -3 -3 -2 -2 -2 -1 ------------- Run | Yrd Mat Min Mat Sto Rec Scr Fac Was Fac Ext Cet Arc Hub Fac Gar Fac Gar Fac Gar Fac Arm Lab Res Tes Res Qua Sec Acc Turns Passed 29496 | 67 1084 569 808 1140 519 2240 1309 211 952 1072 388 402 372 12 1688 992 1910 1916 1639 602 1406 203 2382 1174 454 1795 1338 852 Spaces Moved 32350 | 50 582 454 474 677 375 3060 2177 343 1646 926 217 172 603 26 1059 1079 1583 1899 860 1181 1648 213 4032 1260 671 2362 1500 1221 Core 9 | 3 . . . . . . 4 . . . . . . . 2 . . . . . . . . . . . . . Treads 325 | . 236 . . 1 . . . . . . . . . . . . . . 88 . . . . . . . . . Legs 1486 | . . . . . . . . . . . . . . . 967 . 296 . 223 . . . . . . . . . Wheels 2880 | 47 346 454 474 676 375 508 . . . . . . . . . . . . . . . . . . . . . . Hover 12180 | . . . . . . . . . . . . . . . 90 1079 1287 1374 . . . . 2359 1260 671 2362 1500 198 Flight 15470 | . . . . . . 2552 2173 343 1646 926 217 172 603 26 . . . 525 549 1181 1648 213 1673 . . . . 1023 Fastest Speed 5 | 50 80 95 86 120 135 31 6 20 14 14 20 20 5 26 44 48 40 18 5 17 5 17 16 41 41 38 41 14 Average Speed 46 | 78 124 100 99 121 135 55 25 20 20 19 67 20 21 37 97 57 69 41 87 17 17 22 31 41 41 43 42 19 Slowest Speed 400 | 80 160 110 125 240 135 135 100 96 101 20 98 20 101 103 400 108 176 111 230 17 99 89 154 45 124 113 139 164 Overloaded Moves 484 | . . . . . . . 17 . 10 30 . . 126 26 . . . . 88 . 143 . 25 . . 19 . . Propulsion Burnouts . | . . . . . . . . . . . . . . . . . . . . . . . . . . . . . Robots Hopped 71 | . . . . . . 1 13 . 3 1 . . 7 . . . . 5 3 14 2 . 6 . . . . 16 Potential Cave-ins 7 | . . . . 2 . . . . . . . . . . . . . . . . . . . 2 . . 3 . Cave-ins Triggered 1 | . . . . . . . . . . . . . . . . . . . . . . . . . . . 1 . Exploration Rate (%) 65 | 4 95 93 43 94 97 88 57 97 41 88 84 88 27 1 86 39 77 52 51 21 64 94 88 96 35 96 68 30 Regions Visited 28 Branch Regions 13 Pre-discovered Areas 9 | . 2 1 . 2 3 1 . . . . . . . . . . . . . . . . . . . . . . Known Exits Taken 17 | . . . 1 . . . . . 1 1 1 1 1 1 . 1 . 1 . 1 1 1 1 1 1 1 1 . Unknown Exits Taken 6 | 1 1 1 . 1 1 1 . . . . . . . . . . . . . . . . . . . . . . Scrap Searched 11 | . . 1 . . . 10 . . . . . . . . . . . . . . . . . . . . . . Spaces Dug 145 | . . . . 2 . . 12 . 2 . . . 1 . 1 12 17 13 . 2 8 . 19 8 6 5 22 15 Terrain Destroyed 798 | . 14 13 58 70 . . 23 . 2 . . . 1 . 138 12 25 14 . 2 24 . 102 47 43 30 127 53 Melee 126 | . . . . . . . 12 . 2 . . . 1 . 1 12 17 13 . 2 8 . 17 2 5 4 15 15 Projectile 67 | . . . . 17 . . . . . . . . . . 1 . . . . . 10 . 3 14 3 3 16 . AOE 604 | . 14 13 58 53 . . 11 . . . . . . . 136 . 8 . . . 6 . 82 31 35 23 96 38 Terrain Rammed . | . . . . . . . . . . . . . . . . . . . . . . . . . . . . . Walls Destroyed . | . . . . . . . . . . . . . . . . . . . . . . . . . . . . . Machines Disabled . | . . . . . . . . . . . . . . . . . . . . . . . . . . . . . Actions | -11 -10 -10 -9 -9 -9 -9 -6 -6 -6 -6 -6 -6 -6 -5 -5 -5 -5 -5 -5 -4 -4 -4 -3 -3 -2 -2 -2 -1 --------- Run | Yrd Mat Min Mat Sto Rec Scr Fac Was Fac Ext Cet Arc Hub Fac Gar Fac Gar Fac Gar Fac Arm Lab Res Tes Res Qua Sec Acc Total 44299 | 70 766 525 689 879 385 3614 2786 465 2222 1757 434 509 803 27 1566 1367 2201 2936 1510 1526 2643 373 4958 1733 783 3072 2005 1695 Wait 8042 | 7 67 33 86 91 . 471 408 106 513 614 165 304 159 . 250 169 330 843 335 298 696 109 631 282 26 442 249 358 Move 32186 | 49 581 453 473 676 374 3057 2152 342 1639 923 216 171 590 25 1058 1079 1582 1888 853 1152 1644 212 4019 1259 669 2360 1498 1192 Hop 64 | . . . . . . 1 12 . 3 1 . . 6 . . . . 5 3 14 1 . 6 . . . . 12 Pick Up 268 | 5 9 4 12 2 4 30 19 2 4 1 12 1 4 . 15 9 17 14 14 2 14 19 15 10 4 12 10 4 Fast Attach 412 | 7 . 1 14 4 . 4 24 . 7 . 4 8 3 1 24 22 22 33 30 6 29 . 57 5 8 29 45 25 Attach 170 | . 4 1 5 . . 5 7 . . 1 1 . 3 . 22 4 12 10 20 2 7 8 18 4 4 10 15 7 Detach 80 | . 2 . 2 . . 1 2 . . . 1 . 1 . 11 1 5 4 11 1 7 3 8 . . 5 9 6 Swap 336 | . 5 6 12 14 2 2 33 6 24 4 7 2 12 1 2 12 26 15 8 2 22 2 22 38 22 28 5 2 Drop 523 | . 2 3 19 13 3 40 22 2 11 . 13 9 4 . 24 27 28 36 34 6 31 17 61 8 5 42 40 23 Fire 717 | 2 96 24 66 79 2 1 4 . . . 1 . 1 . 18 3 79 38 57 7 47 . 14 44 10 69 51 4 Melee 969 | . . . . . . 2 58 7 21 33 14 14 20 . 73 41 62 31 99 27 57 3 105 78 34 46 82 62 Ram . | . . . . . . . . . . . . . . . . . . . . . . . . . . . . . Kick . | . . . . . . . . . . . . . . . . . . . . . . . . . . . . . Crush . | . . . . . . . . . . . . . . . . . . . . . . . . . . . . . Escape Stasis 160 | . . . . . . . 45 . . 15 . . . . 5 . 17 13 46 9 3 . . 4 1 1 1 . Rewire 342 | . . . . . . . . . . 165 . . . . 64 . 21 6 . . 85 . . 1 . . . . Trap 28 | . . . . . . . . . . . . . . . . . . . . . . . . . . 28 . . Miscellaneous 2 | . . . . . . . . . . . . . . . . . . . . . . . 2 . . . . . Route ------- -11/Scrapyard -10/Materials (discovered 4 exits: *Mat x2 / *Min / [*Sub]) -10/Mines (discovered 3 exits: *Mat x2 / [*Sub]) -9/Materials (discovered 4 exits: [*Mat] / Min x2 / *Sto) -9/Storage (discovered 2 exits: [*Mat] / *Rec) -9/Recycling -9/Scraptown (discovered 2 exits: *Fac x2) -6/Factory (discovered 4 exits: *Fac x2 / *Low / *Ext) -6/Waste -6/Factory (discovered 5 exits: *Fac x3 / *Low / *Ext) -6/Extension (discovered 2 exits: *Fac / *Cet) -6/Cetus (discovered 2 exits: *Fac / *Arc) -6/Archives (discovered 3 exits: *Fac / *Hub x2) -6/Hub_04(d) -5/Factory -5/Garrison (discovered 3 exits: *Fac x3) -5/Factory (discovered 4 exits: *Fac x2 / Gar / Gar) -5/Garrison (discovered 4 exits: *Fac x3 / *Fac) -5/Factory (discovered 5 exits: *Fac x2 / *Upp x2 / Gar) -5/Garrison -4/Factory (discovered 2 exits: *Res / *Arm) -4/Armory -4/Lab -3/Research (discovered 5 exits: *Res x3 / *Tes x2) -3/Testing -2/Research -2/Quarantine (discovered 3 exits: *Acc / *Sec / [*Frg]) -2/Section 7 -1/Access (discovered 2 exits: *Sur / Com) To Fleet Rendezvous History --------- Turn | Location | Event 11 | -11/Scrapyard | Discovered new exit (range 15) 68 | -11/Scrapyard | Entered Materials 202 | -10/Materials | Discovered new exit (range 8) 310 | -10/Materials | Build established: Mutant 454 | -10/Materials | Discovered new exit (range 14) 917 | -10/Materials | Core integrity fell below 50% 958 | -10/Materials | Discovered new exit (range 8) 983 | -10/Materials | Discovered new exit (range 16) 1152 | -10/Materials | Entered Mines 1256 | -10/Mines | Discovered new exit (range 6) 1385 | -10/Mines | Learned Materials stockpile data 1434 | -10/Mines | Learned location of Mines (-9) 1442 | -10/Mines | Discovered new exit (range 5) 1650 | -10/Mines | Discovered new exit (range 11) 1679 | -10/Mines | Found the Drone Emporium 1683 | -10/Mines | Found Prototype Device 1721 | -10/Mines | Entered Materials 1721 | -9/Materials | Evolved 2 slots: Propulsion x2 1863 | -9/Materials | Build established: Scavenger-Mutant 1876 | -9/Materials | Discovered new exit (range 12) 1945 | -9/Materials | Lost 3 parts (1n1u1w) 2338 | -9/Materials | Discovered new exit (range 11) 2406 | -9/Materials | Identified exit to Mines 2406 | -9/Materials | Identified exit to Storage 2529 | -9/Materials | Entered Storage 2618 | -9/Storage | Core integrity fell below 50% 2814 | -9/Storage | Learned location of Armory (-4) 3118 | -9/Storage | Discovered new exit (range 16) 3418 | -9/Storage | Met 01-MTF 3473 | -9/Storage | Garrison activated, responded to threat 3518 | -9/Storage | Discovered new exit (range 9) 3669 | -9/Storage | Entered Recycling 4156 | -9/Recycling | Scanned before Scraplab entrance 4176 | -9/Recycling | Entered Scraplab 4187 | -9/Recycling | Discovered new exit (range 2) 4188 | -9/Recycling | Entered Scraptown 4188 | -9/Scraptown | System corruption cleaned by C-Scrubber 4360 | -9/Scraptown | Visited UFD Registry 4360 | -9/Scraptown | Registered with UFD as "Matrixstep" 4382 | -9/Scraptown | Visited TADAMA 4396 | -9/Scraptown | Visited CPS Storage 4418 | -9/Scraptown | Visited Bundlers 4446 | -9/Scraptown | Visited Symbiants 4464 | -9/Scraptown | Visited Cyclists 4473 | -9/Scraptown | Entered Cyclist Reading Room 4503 | -9/Scraptown | Visited IN-MT5's Study 4674 | -9/Scraptown | Discovered new exit (range 13) 5017 | -9/Scraptown | Visited Supply Room 5032 | -9/Scraptown | Visited Curators Association 5121 | -9/Scraptown | Visited Science Guys 5153 | -9/Scraptown | Visited Analyses Database 5171 | -9/Scraptown | Build established: Mutant 5177 | -9/Scraptown | Visited Infowarlord's Domain 5188 | -9/Scraptown | Visited Botcube Research 5200 | -9/Scraptown | Identified Decoy Drone Bay 5210 | -9/Scraptown | Found Lrg. Botcube 5218 | -9/Scraptown | Visited DA-N13 Charitable Foundation 5221 | -9/Scraptown | Found DCF Scrap (31 items) 5299 | -9/Scraptown | Visited Research Penetration Think Tank 5391 | -9/Scraptown | Found Exp. Terrain Scanner 5501 | -9/Scraptown | Build established: Sprinter 5665 | -9/Scraptown | Found Scrap Suit 5782 | -9/Scraptown | Lrg. Botcube activated 5814 | -9/Scraptown | Lrg. Botcube completed mutation into treaded form, armed with 2 guns, 1 launcher 5829 | -9/Scraptown | Attached CPS modules to Large Mutated Botcube 6370 | -9/Scraptown | Attacked by Scraptown defenders 6373 | -9/Scraptown | Stole IN-MT5's Pitchfork schematic 6396 | -9/Scraptown | Found DM-GVY's Chainsaw 6410 | -9/Scraptown | Found Thermal Lance 6417 | -9/Scraptown | Lost 3 allies 6422 | -9/Scraptown | Core integrity fell below 20% 6428 | -9/Scraptown | Discovered new exit (range 3) 6428 | -9/Scraptown | Entered Factory 6428 | -6/Factory | Evolved 6 slots: Propulsion x2, Utility x4 6512 | -6/Factory | Lost 3 parts (2n1u) 6565 | -6/Factory | Discovered new exit (range 6) 6624 | -6/Factory | Discovered new exit (range 12) 6634 | -6/Factory | Identified exit to Factory 6778 | -6/Factory | Search patrols dispatched 6967 | -6/Factory | Build established: Scout 7101 | -6/Factory | Discovered new exit (range 12) 7275 | -6/Factory | Fabricated IN-MT5's Pitchfork "Insurrection" (x1) 7330 | -6/Factory | Discovered exit to Factory (range 13) 7411 | -6/Factory | Fabricated IN-MT5's Pitchfork "Insurrection"? 7551 | -6/Factory | Reprogrammed and armed K-01 Serf 7567 | -6/Factory | Reprogrammed and armed K-01 Serf 7571 | -6/Factory | Reprogrammed and armed K-01 Serf 7579 | -6/Factory | Build established: Sprinter 7579 | -6/Factory | Reprogrammed and armed K-01 Serf 7580 | -6/Factory | Reprogrammed and armed K-01 Serf 7580 | -6/Factory | Reprogrammed and armed K-01 Serf 7582 | -6/Factory | Reprogrammed and armed K-01 Serf 7582 | -6/Factory | Reprogrammed and armed K-01 Serf 7638 | -6/Factory | Reprogrammed and armed K-01 Serf 7638 | -6/Factory | Reprogrammed and armed K-01 Serf 7645 | -6/Factory | Reprogrammed and armed K-01 Serf 7670 | -6/Factory | Cargo convoy interrupted 7704 | -6/Factory | Found Spectral Analyzer 7735 | -6/Factory | Lost 7 allies 7737 | -6/Factory | Sucked down chute 7737 | -6/Factory | Entered Waste 7743 | -6/Waste | Spotted C-40 Crusher 7746 | -6/Waste | Spotted C-40 Crusher 7748 | -6/Waste | Spotted C-40 Crusher 7756 | -6/Waste | Discovered new exit (range 22) 7756 | -6/Waste | Spotted C-40 Crusher 7756 | -6/Waste | Spotted C-40 Crusher 7757 | -6/Waste | Spotted C-40 Crusher 7761 | -6/Waste | Warlord forces began an assault 7769 | -6/Waste | Allies destroyed C-40 Crusher 7769 | -6/Waste | Allies destroyed C-40 Crusher 7771 | -6/Waste | Allies destroyed C-40 Crusher 7787 | -6/Waste | Allies destroyed C-40 Crusher 7791 | -6/Waste | Allies destroyed C-40 Crusher 7795 | -6/Waste | Allies destroyed C-40 Crusher 7806 | -6/Waste | Found Fusion Bomb Launcher 7818 | -6/Waste | Lost 3 allies 7888 | -6/Waste | Identified exit to Factory 7948 | -6/Waste | Entered Factory 7948 | -6/Factory | Accompanied by 15 allies 7979 | -6/Factory | Build established: Scout 8010 | -6/Factory | Repaired Fusion Bomb Launcher 8035 | -6/Factory | Discovered exit to Factory (range 14) 8183 | -6/Factory | Discovered new exit (range 12) 8249 | -6/Factory | Discovered exit to Factory (range 10) 8261 | -6/Factory | Fabricated Imp. Weapon Shielding? 8449 | -6/Factory | Repaired Imp. Medium Armor Plating 8486 | -6/Factory | Discovered new exit (range 4) 8487 | -6/Factory | Identified exit to Lower Caves 8576 | -6/Factory | Spotted B-75 Beast 8760 | -6/Factory | Discovered exit to Factory (range 8) 8805 | -6/Factory | Reprogrammed and armed K-01 Serf 8811 | -6/Factory | Identified exit to Extension 8900 | -6/Factory | Entered Extension 8900 | -6/Extension | Accompanied by 5 allies 8981 | -6/Extension | Rescued a captive Derelict 8982 | -6/Extension | Rescued a captive Derelict 8988 | -6/Extension | Rescued a captive Derelict 8988 | -6/Extension | Rescued a captive Derelict 9092 | -6/Extension | Rescued a captive Derelict 9092 | -6/Extension | Rescued a captive Derelict 9178 | -6/Extension | Rescued a captive Derelict 9250 | -6/Extension | First assault squad dispatched 9443 | -6/Extension | Build established: Commander-Scout 9462 | -6/Extension | Spotted B-75 Beast 9487 | -6/Extension | Reprogrammed and armed K-01 Serf 9487 | -6/Extension | Reprogrammed and armed K-01 Serf 9496 | -6/Extension | Spotted B-75 Beast 9510 | -6/Extension | Allies destroyed B-75 Beast 9517 | -6/Extension | Allies destroyed B-75 Beast 9525 | -6/Extension | Reprogrammed and armed K-01 Serf 9561 | -6/Extension | Lost 7 allies 9731 | -6/Extension | Rescued A7 9738 | -6/Extension | Rescued a captive Derelict 9739 | -6/Extension | Rescued a captive Derelict 9795 | -6/Extension | Rescued a captive Derelict 9843 | -6/Extension | Discovered exit to Factory (range 10) 9843 | -6/Extension | Discovered new exit (range 6) 9845 | -6/Extension | Identified exit to Cetus 9972 | -6/Extension | Entered Cetus 9972 | -6/Cetus | Accompanied by 25 allies (A7) 9977 | -6/Cetus | Acquired a Cetus Manufacturing Module code from A7 9989 | -6/Cetus | Spotted Cetus Guard 9989 | -6/Cetus | Spotted Cetus Guard 9990 | -6/Cetus | Spotted Cetus Guard 9990 | -6/Cetus | Spotted Cetus Guard 9996 | -6/Cetus | Allies destroyed Cetus Guard 10014 | -6/Cetus | Allies destroyed Cetus Guard 10023 | -6/Cetus | Allies destroyed Cetus Guard 10027 | -6/Cetus | Allies destroyed Cetus Guard 10053 | -6/Cetus | Lost 9 allies 10074 | -6/Cetus | Started Cetus Manufacturing Module 10087 | -6/Cetus | Escorted A7 to Cetus Mainframe 10091 | -6/Cetus | Discovered new exit (range 24) 10099 | -6/Cetus | Manufactured an Enhanced Grunt 10124 | -6/Cetus | Manufactured an Enhanced Grunt 10144 | -6/Cetus | Spotted Cetus Guard 10144 | -6/Cetus | Spotted Cetus Guard 10149 | -6/Cetus | Manufactured an Enhanced Grunt 10173 | -6/Cetus | Spotted Cetus Guard 10174 | -6/Cetus | Manufactured an Enhanced Grunt 10176 | -6/Cetus | Spotted Cetus Guard 10195 | -6/Cetus | Allies destroyed Cetus Guard 10199 | -6/Cetus | Manufactured an Enhanced Grunt 10199 | -6/Cetus | Discovered exit to Factory (range 23) 10203 | -6/Cetus | Allies destroyed Cetus Guard 10207 | -6/Cetus | Allies destroyed Cetus Guard 10220 | -6/Cetus | Allies destroyed Cetus Guard 10230 | -6/Cetus | Lost 10 allies 10231 | -6/Cetus | Met Revision 17 10270 | -6/Cetus | Attached CPS modules to A7 10311 | -6/Cetus | Found Prototype Protection 10311 | -6/Cetus | Identified Med. Regenerative Plating 10329 | -6/Cetus | Identified exit to Archives 10350 | -6/Cetus | Murdered A7 10353 | -6/Cetus | Extracted ID and sensor layout for unrecognized location from A7's data core 10360 | -6/Cetus | Entered Archives 10360 | -6/Archives | Accompanied by 9 allies 10431 | -6/Archives | Discovered exit to Factory (range 14) 10433 | -6/Archives | Discovered new exit (range 21) 10433 | -6/Archives | Discovered new exit (range 17) 10481 | -6/Archives | Found Prototype Device 10481 | -6/Archives | Identified Exp. Thermal Shield 10562 | -6/Archives | Build established: Commander-Sprinter 10729 | -6/Archives | Identified exit to Hub_04(d) 10762 | -6/Archives | Entered Hub_04(d) 10762 | -6/Hub_04(d) | Accompanied by 6 allies 10896 | -6/Hub_04(d) | Network Hub disabled 10946 | -6/Hub_04(d) | Spotted Lightning 10946 | -6/Hub_04(d) | Spotted Lightning 10947 | -6/Hub_04(d) | Spotted Lightning 10988 | -6/Hub_04(d) | Reprogrammed and armed K-01 Serf 11047 | -6/Hub_04(d) | Attached CPS modules to Lightning 11051 | -6/Hub_04(d) | Destroyed Lightning 11082 | -6/Hub_04(d) | Destroyed Lightning 11086 | -6/Hub_04(d) | Lost 4 parts (1p3n) 11112 | -6/Hub_04(d) | Found Prototype Device 11112 | -6/Hub_04(d) | Identified Exp. EM Shield 11118 | -6/Hub_04(d) | Found Prototype Energy Cannon 11131 | -6/Hub_04(d) | Discovered exit to Factory (range 8) 11132 | -6/Hub_04(d) | Reprogrammed and armed K-01 Serf 11133 | -6/Hub_04(d) | Reprogrammed and armed K-01 Serf 11134 | -6/Hub_04(d) | Entered Factory 11134 | -5/Factory | Accompanied by 1 ally 11134 | -5/Factory | Evolved 2 slots: Utility x2 11139 | -5/Factory | Identified exit to Garrison 11146 | -5/Factory | Entered Garrison 11146 | -5/Garrison | Accompanied by 1 ally 11152 | -5/Garrison | Identified EMDS 11174 | -5/Garrison | Triggered checkpoint 11202 | -5/Garrison | Garrison Relay disabled 11236 | -5/Garrison | Installed Relay Interface Framework 11267 | -5/Garrison | Spotted B-75 Beast 11286 | -5/Garrison | Triggered checkpoint 11303 | -5/Garrison | Destroyed 8 combat bots 11355 | -5/Garrison | Destroyed B-75 Beast 11442 | -5/Garrison | Triggered checkpoint 11632 | -5/Garrison | Triggered checkpoint 11689 | -5/Garrison | Garrison Relay disabled 11698 | -5/Garrison | Build established: Scavenger-Mutant 11783 | -5/Garrison | Discovered new exit (range 21) 11788 | -5/Garrison | Triggered checkpoint 11896 | -5/Garrison | Destroyed 12 combat bots 11902 | -5/Garrison | Lost 3 parts (2n1u) 12080 | -5/Garrison | Discovered new exit (range 10) 12167 | -5/Garrison | Discovered new exit (range 45) 12167 | -5/Garrison | Discovered new exit (range 10) 12167 | -5/Garrison | Discovered new exit (range 61) 12208 | -5/Garrison | Garrison Relay disabled 12328 | -5/Garrison | Identified exit to Factory 12397 | -5/Garrison | Expanded RIF knowledge: Signal Jamming 12585 | -5/Garrison | Garrison Relay disabled 12739 | -5/Garrison | Garrison Relay disabled 12748 | -5/Garrison | Garrison Relay disabled 12834 | -5/Garrison | Entered Factory 12880 | -5/Factory | Watched by a mysterious "MATRIX" hacker 12893 | -5/Factory | Found Prototype Launcher 12893 | -5/Factory | Identified Scatter Rocket Array 13368 | -5/Factory | Found Imp. Powered Armor 13407 | -5/Factory | Found Unknown Protection 13407 | -5/Factory | Identified Hvy. Reactive Plating 13433 | -5/Factory | Build established: Scout 13530 | -5/Factory | Discovered new exit (range 22) 13589 | -5/Factory | Repaired Broken Imp. Powered Armor 13620 | -5/Factory | Identified exit to Garrison 13637 | -5/Factory | Reprogrammed and armed K-01 Serf 13720 | -5/Factory | Discovered new exit (range 5) 13722 | -5/Factory | Identified exit to Factory 13734 | -5/Factory | First assault squad dispatched 13826 | -5/Factory | Identified exit to Garrison 13826 | -5/Factory | Entered Garrison 13911 | -5/Garrison | Spotted B-75 Beast 14052 | -5/Garrison | Triggered checkpoint 14080 | -5/Garrison | Garrison Relay disabled 14136 | -5/Garrison | Triggered checkpoint 14138 | -5/Garrison | Build established: Mutant 14211 | -5/Garrison | Destroyed B-75 Beast 14232 | -5/Garrison | Triggered checkpoint 14511 | -5/Garrison | Spotted B-75 Beast 14541 | -5/Garrison | Destroyed B-75 Beast 14563 | -5/Garrison | Lost 3 parts (1n1u1w) 14631 | -5/Garrison | Found Adv. Powered Armor 14633 | -5/Garrison | Found Adv. Powered Armor 14678 | -5/Garrison | Discovered exit to Factory (range 51) 14678 | -5/Garrison | Discovered exit to Factory (range 10) 14678 | -5/Garrison | Discovered exit to Factory (range 99) 14678 | -5/Garrison | Discovered new exit (range 76) 14700 | -5/Garrison | Triggered checkpoint 14721 | -5/Garrison | Expanded RIF knowledge: Program Shield 14741 | -5/Garrison | Garrison Relay disabled 14747 | -5/Garrison | Garrison Relay disabled 14784 | -5/Garrison | Triggered checkpoint 15053 | -5/Garrison | Found Adv. Powered Armor 15056 | -5/Garrison | Found Adv. Powered Armor 15195 | -5/Garrison | System corruption reached 10% 15211 | -5/Garrison | Core integrity fell below 50% 15279 | -5/Garrison | Garrison Relay disabled 15321 | -5/Garrison | Expanded RIF knowledge: Structural Interface 15532 | -5/Garrison | Triggered checkpoint 15554 | -5/Garrison | Build established: Scavenger-Mutant 15713 | -5/Garrison | Identified exit to Factory 15736 | -5/Garrison | Entered Factory 15736 | -5/Factory | Accompanied by 4 allies 16030 | -5/Factory | Build established: Scavenger-Scout 16323 | -5/Factory | Reprogrammed and armed K-01 Serf 16329 | -5/Factory | Reprogrammed and armed K-01 Serf 16332 | -5/Factory | Reprogrammed and armed K-01 Serf 16332 | -5/Factory | Reprogrammed and armed K-01 Serf 16336 | -5/Factory | First assault squad dispatched 16404 | -5/Factory | Lost 3 allies 16427 | -5/Factory | Reprogrammed and armed K-01 Serf 16447 | -5/Factory | Reprogrammed and armed K-01 Serf 16525 | -5/Factory | Discovered new exit (range 5) 16529 | -5/Factory | Identified exit to Upper Caves 16801 | -5/Factory | Reprogrammed and armed K-01 Serf 16870 | -5/Factory | Fabricated Linear Gravjet (x2) 17031 | -5/Factory | Fabricated Cld. Impulse Thruster? 17099 | -5/Factory | Build established: Scout 17179 | -5/Factory | Discovered exit to Factory (range 19) 17312 | -5/Factory | Repaired Broken Cld. Impulse Thruster 17429 | -5/Factory | Discovered exit to Upper Caves (range 4) 17441 | -5/Factory | Found Prototype Processor 17441 | -5/Factory | Identified Exp. Targeting Computer 17547 | -5/Factory | Discovered exit to Factory (range 6) 17599 | -5/Factory | Fabricated Cld. Impulse Thruster? 17651 | -5/Factory | Identified exit to Garrison 17652 | -5/Factory | Entered Garrison 17654 | -5/Garrison | Expanded RIF knowledge: Hotswap 17735 | -5/Garrison | Rescued a captive Derelict 17737 | -5/Garrison | Rescued a captive Derelict 18102 | -5/Garrison | Triggered checkpoint 18102 | -5/Garrison | Spotted B-75 Beast 18198 | -5/Garrison | Core integrity fell below 20% 18212 | -5/Garrison | Destroyed B-75 Beast 18279 | -5/Garrison | Build established: Scavenger-Mutant 18496 | -5/Garrison | Triggered checkpoint 18563 | -5/Garrison | Lost 4 parts (1p2n1u) 18645 | -5/Garrison | Garrison Relay disabled 19009 | -5/Garrison | Discovered exit to Factory (range 10) 19012 | -5/Garrison | Triggered checkpoint 19054 | -5/Garrison | Garrison Relay disabled 19291 | -5/Garrison | Entered Factory 19291 | -4/Factory | Evolved 2 slots: Power x1, Propulsion x1 19395 | -4/Factory | Reprogrammed and armed K-01 Serf 19395 | -4/Factory | Reprogrammed and armed K-01 Serf 19454 | -4/Factory | Discovered new exit (range 9) 19464 | -4/Factory | Identified exit to Research 19595 | -4/Factory | Build established: Bothacker-Sprinter 19639 | -4/Factory | Reprogrammed and armed K-01 Serf 19639 | -4/Factory | Reprogrammed and armed K-01 Serf 19651 | -4/Factory | Reprogrammed and armed K-01 Serf 19728 | -4/Factory | Fabricated Exp. Weapon Shielding (x1) 19739 | -4/Factory | Reprogrammed and armed K-01 Serf 19819 | -4/Factory | Reprogrammed and armed K-01 Serf 19819 | -4/Factory | Reprogrammed and armed K-01 Serf 19827 | -4/Factory | Reprogrammed and armed K-01 Serf 19854 | -4/Factory | Discovered new exit (range 11) 19879 | -4/Factory | Identified exit to Armory 19893 | -4/Factory | Entered Armory 19893 | -4/Armory | Accompanied by 7 allies 19955 | -4/Armory | Repaired Cld. Impulse Thruster 20052 | -4/Armory | Fabricated Exp. Weapon Shielding (x1) 20253 | -4/Armory | Spotted B-86 Titan 20326 | -4/Armory | Fabricated Cld. Impulse Thruster (x1) 20365 | -4/Armory | Fabricated IN-MT5's Pitchfork "Insurrection"? 20411 | -4/Armory | Allies destroyed B-86 Titan 20435 | -4/Armory | P-70 Sage assimilated allied Assassin 7b 20643 | -4/Armory | First assault squad dispatched 20883 | -4/Armory | Destroyed 7 combat bots 21076 | -4/Armory | Discovered new exit (range 4) 21203 | -4/Armory | Identified exit to Lab 21299 | -4/Armory | Entered Lab 21299 | -4/Lab | Discovered exit to Research (range 9) 21301 | -4/Lab | Hidden lab's door opened automatically 21301 | -4/Lab | Sensor layout match revealed 21302 | -4/Lab | Gained access to the hidden lab's interior 21346 | -4/Lab | Found Prototype Special Weapon 21357 | -4/Lab | Found Prototype Energy Cannon 21358 | -4/Lab | Found Prototype Energy Cannon 21359 | -4/Lab | Found Prototype Device 21361 | -4/Lab | Found Prototype Hackware 21365 | -4/Lab | Identified Potential Cannon 21367 | -4/Lab | Identified Warp Cannon 21369 | -4/Lab | Identified AEGIS Remote Shield 21388 | -4/Lab | Identified Gui. Remote Datajack 21390 | -4/Lab | Identified Deep Network Scanner 21412 | -4/Lab | Found Alien Artifact 21432 | -4/Lab | Found Alien Artifact 21457 | -4/Lab | Found Alien Artifact 21479 | -4/Lab | Identified Core Regenerator 21479 | -4/Lab | Used Core Regenerator, restored core integrity (+102) 21502 | -4/Lab | Entered Research 21502 | -3/Research | Evolved 2 slots: Utility x2 21578 | -3/Research | Targeted by mysterious "MATRIX" hacker 21608 | -3/Research | Identified Transdimensional Reconstructor 21608 | -3/Research | Identified Integrated Mediator 21608 | -3/Research | Installed Integrated Mediator, increased core attachment efficiency 21618 | -3/Research | Fabricated Cld. Impulse Thruster? 21622 | -3/Research | Allied Derelicts emerged from ambush trap array 21669 | -3/Research | Build established: Hacker-Scout 21702 | -3/Research | Revision forces began assault on 0b10 21714 | -3/Research | Spotted B-86 Titan 21756 | -3/Research | Central database locked down 21774 | -3/Research | Identified exit to Research 21787 | -3/Research | Met up with Revision 17++ 21857 | -3/Research | Fabricated Cmb. Linear Gravjet (x2) 21963 | -3/Research | Reprogrammed and armed K-01 Serf 21968 | -3/Research | Reprogrammed and armed K-01 Serf 22029 | -3/Research | Found Exp. Signal Interpreter 22040 | -3/Research | Spotted B-86 Titan 22103 | -3/Research | Spotted B-86 Titan 22143 | -3/Research | Fabricated CPS Tube? 22202 | -3/Research | Research terminal network offline 22264 | -3/Research | Discovered new exit (range 15) 22609 | -3/Research | Fabricated Cld. Antigrav System? 22666 | -3/Research | Spotted Striker 22701 | -3/Research | Discovered new exit (range 25) 22809 | -3/Research | Identified exit to Testing 22899 | -3/Research | Repaired Broken Cld. Antigrav System 22906 | -3/Research | Spotted Striker 23050 | -3/Research | Found Prototype Device 23050 | -3/Research | Identified Adv. Kinecellerator 23149 | -3/Research | Spotted Striker 23197 | -3/Research | Spotted Striker 23200 | -3/Research | Destroyed Striker 23211 | -3/Research | Destroyed Striker 23460 | -3/Research | Spotted Striker 23468 | -3/Research | Spotted Striker 23493 | -3/Research | Destroyed Striker 23534 | -3/Research | Destroyed Striker 23574 | -3/Research | Spotted Striker 23600 | -3/Research | Destroyed Striker 23610 | -3/Research | Lost 3 parts (1p1n1u) 23747 | -3/Research | Spotted Executioner 23755 | -3/Research | Spotted Striker 23793 | -3/Research | Destroyed Striker 23805 | -3/Research | Attached CPS modules to Executioner 23830 | -3/Research | Destroyed Executioner 23837 | -3/Research | Found Prototype Processor 23837 | -3/Research | Identified Exp. Core Analyzer 23884 | -3/Research | Entered Testing 23897 | -3/Testing | Spotted PL-8DEGW8GDN8 23901 | -3/Testing | Attached CPS modules to PL-8DEGW8GDN8 23942 | -3/Testing | Destroyed PL-8DEGW8GDN8 23943 | -3/Testing | Found Femtoactuators 23950 | -3/Testing | Found Exp. Melee Analysis Suite 24039 | -3/Testing | Repaired Cmb. Linear Gravjet+ 24060 | -3/Testing | Found Prototype Energy Cannon 24060 | -3/Testing | Identified Disintegrator 24287 | -3/Testing | Reprogrammed and armed K-01 Serf 24358 | -3/Testing | Repaired Adv. Powered Armor? 24490 | -3/Testing | Found Prototype Device 24491 | -3/Testing | Identified Exp. EM Disruption Field 24611 | -3/Testing | Found Prototype Device 24612 | -3/Testing | Identified Adv. EM Shield 24634 | -3/Testing | First assault squad dispatched 24667 | -3/Testing | Reprogrammed and armed K-01 Serf 24703 | -3/Testing | P-80 Master assimilated allied K-01 Serf 24910 | -3/Testing | Reprogrammed and armed K-01 Serf 24984 | -3/Testing | Spotted Striker 24987 | -3/Testing | Spotted Striker 25022 | -3/Testing | Reprogrammed and armed K-01 Serf 25025 | -3/Testing | Discovered exit to Research (range 22) 25058 | -3/Testing | Entered Research 25058 | -2/Research | Accompanied by 2 allies 25058 | -2/Research | Evolved 2 slots: Utility x2 25169 | -2/Research | Spotted B-90 Cyclops 25294 | -2/Research | Reprogrammed and armed K-01 Serf 25294 | -2/Research | Reprogrammed and armed K-01 Serf 25307 | -2/Research | Identified exit to Quarantine 25308 | -2/Research | First assault squad dispatched 25512 | -2/Research | Entered Quarantine 25703 | -2/Quarantine | Cryocooling Duct disabled 25718 | -2/Quarantine | Ambient heat levels rising (+20) 25718 | -2/Quarantine | Non-combat units ordered to evacuate 25837 | -2/Quarantine | Cryocooling Duct disabled 25852 | -2/Quarantine | Ambient heat levels rising (+20) 25852 | -2/Quarantine | Combat units ordered to evacuate 25952 | -2/Quarantine | Quarantine Guard activated 25972 | -2/Quarantine | Found Quantum Capacitor 25994 | -2/Quarantine | Spotted Quarantine Guard 26008 | -2/Quarantine | Spotted Quarantine Guard 26008 | -2/Quarantine | Spotted Quarantine Guard 26008 | -2/Quarantine | Spotted Quarantine Guard 26008 | -2/Quarantine | Spotted Quarantine Guard 26015 | -2/Quarantine | Destroyed Quarantine Guard 26020 | -2/Quarantine | Destroyed Quarantine Guard 26025 | -2/Quarantine | Destroyed Quarantine Guard 26027 | -2/Quarantine | Destroyed Quarantine Guard 26029 | -2/Quarantine | Destroyed Quarantine Guard 26030 | -2/Quarantine | Destroyed Quarantine Guard 26048 | -2/Quarantine | Spotted Quarantine Guard 26050 | -2/Quarantine | Spotted Quarantine Guard 26058 | -2/Quarantine | Destroyed Quarantine Guard 26064 | -2/Quarantine | Destroyed Quarantine Guard 26123 | -2/Quarantine | Destroyed Quarantine Guard 26133 | -2/Quarantine | Destroyed Quarantine Guard 26135 | -2/Quarantine | Discovered new exit (range 8) 26138 | -2/Quarantine | Identified exit to Access 26191 | -2/Quarantine | Found Alien Impact Weapon 26191 | -2/Quarantine | Identified Core Stripper 26265 | -2/Quarantine | Spotted Fortress 26343 | -2/Quarantine | Destroyed Fortress 26355 | -2/Quarantine | Found Prototype Protection 26355 | -2/Quarantine | Identified Centrium Heavy Armor Plating 26365 | -2/Quarantine | Found Prototype Reactor 26395 | -2/Quarantine | Found Alien Artifact 26395 | -2/Quarantine | Identified Phase Armor 26431 | -2/Quarantine | Found Prototype Launcher 26431 | -2/Quarantine | Identified Ragnarok Missile Launcher 26478 | -2/Quarantine | Identified Vortex Chain Reactor 26502 | -2/Quarantine | Found Alien Artifact 26502 | -2/Quarantine | Identified Phase Redirector 26586 | -2/Quarantine | Repaired Cmb. Linear Gravjet+ 26651 | -2/Quarantine | Found Alien Slashing Weapon 27063 | -2/Quarantine | Found Alien Artifact 27063 | -2/Quarantine | Identified Core Reset Matrix 27063 | -2/Quarantine | Identified Sigix Broadsword 27063 | -2/Quarantine | Used Core Reset Matrix 27067 | -2/Quarantine | Detected hypermatrix surge 27067 | -2/Quarantine | Sensed 16 artifacts in vicinity 27184 | -2/Quarantine | Found Subatomic Replicator 27198 | -2/Quarantine | Discovered exit to Access (range 16) 27216 | -2/Quarantine | Found Transdimensional Reconstructor 27301 | -2/Quarantine | Discovered new exit (range 7) 27301 | -2/Quarantine | Discovered new exit (range 6) 27301 | -2/Quarantine | Spotted Quarantine Guard 27301 | -2/Quarantine | Spotted Quarantine Guard 27306 | -2/Quarantine | Identified exit to Section 7 27307 | -2/Quarantine | Entered Section 7 27308 | -2/Section 7 | Detected hypermatrix surge 27308 | -2/Section 7 | Sensed 19 artifacts in vicinity 27358 | -2/Section 7 | Found Integrated Reactor 27358 | -2/Section 7 | Installed Integrated Reactor, increased core energy generation (+10) 27380 | -2/Section 7 | Found Integrated Mediator 27380 | -2/Section 7 | Installed Integrated Mediator, increased core attachment efficiency 27384 | -2/Section 7 | Discovered exit to Access (range 4) 27485 | -2/Section 7 | Spotted B-90 Cyclops 27491 | -2/Section 7 | Spotted Alpha 7 27491 | -2/Section 7 | Spotted Alpha 7 27520 | -2/Section 7 | Crushed by falling debris 27552 | -2/Section 7 | Lost 3 parts (1n2u) 27554 | -2/Section 7 | Destroyed Alpha 7 27567 | -2/Section 7 | Destroyed Alpha 7 27572 | -2/Section 7 | Found Prototype Device 27572 | -2/Section 7 | Identified Exp. ECM Suite 27574 | -2/Section 7 | Found Prototype Processor 27574 | -2/Section 7 | Identified Exp. Target Analyzer 27580 | -2/Section 7 | Found Prototype Processor 27580 | -2/Section 7 | Identified Exp. Targeting Computer 27585 | -2/Section 7 | Found Exp. Targeting Computer 27588 | -2/Section 7 | Destroyed 9 combat bots 27608 | -2/Section 7 | Warp Cannon suddenly broke down 27627 | -2/Section 7 | Found Prototype Ballistic Gun 27627 | -2/Section 7 | Identified Multirail 27675 | -2/Section 7 | Found Integrated Dissipator 27675 | -2/Section 7 | Installed Integrated Dissipator, increased core heat dissipation (+20) 27807 | -2/Section 7 | First assault squad dispatched 27908 | -2/Section 7 | Found Prototype Device 27908 | -2/Section 7 | Identified Exp. Thermal Defense Suite 27937 | -2/Section 7 | Found Spacefold Activator 27946 | -2/Section 7 | Spotted Executioner 27946 | -2/Section 7 | Spotted Executioner 27965 | -2/Section 7 | Spotted B-99 Colossus 28015 | -2/Section 7 | Found LRC Matter Compressor 28015 | -2/Section 7 | Installed LRC Matter Compressor, increased matter storage capacity (+125) 28017 | -2/Section 7 | Found LRC Storage 28017 | -2/Section 7 | Installed LRC Storage, increased inventory capacity (+2) 28317 | -2/Section 7 | Build established: Alien-Mutant 28364 | -2/Section 7 | Spotted S7 Guard 28547 | -2/Section 7 | Destroyed S7 Guard 28628 | -2/Section 7 | Found Core Regenerator 28645 | -2/Section 7 | Entered Access 28645 | -1/Access | Evolved 2 slots: Utility x1, Weapon x1 28692 | -1/Access | Repaired Adv. Powered Armor 28841 | -1/Access | Build established: Hacker-Mutant 28895 | -1/Access | First assault squad dispatched 28977 | -1/Access | Fabricated Femtoactuators (x1) 29002 | -1/Access | Central database locked down 29027 | -1/Access | Spotted B-99 Colossus 29216 | -1/Access | Spotted B-99 Colossus 29250 | -1/Access | Spotted B-99 Colossus 29387 | -1/Access | Fabricated Femtoactuators? 29402 | -1/Access | Identified exit to Command 29494 | -1/Access | Discovered new exit (range 7) 29497 | -1/Access | Identified exit to Surface 29497 | *** | Heading to fleet! Last Messages --------------- *random keyboard noises* 29474_ ALERT: Suspicious activity at Terminal A020. Dispatching Investigation squad. 29493_ Slug penetrates H-88 Terminator. 29493_ Connecting with Terminal... >>Open(Door) Sealed Barrier opened. 29494_ Slug penetrates Terminal. 29494_ Slug penetrates K-01 Serf. 29494_ K-01 Serf destroyed. 29494_ Slug penetrates Main Access Shell. 29494_ Penetrated by Slug. 29494_ The Access Shell folds into the floor. 29494_ EXIT=FOUND 29494_ K-01 Serf collects debris. 29497_ Slug penetrates Sealed Heavy Doors. 29497_ Slug penetrates Terminal. 29497_ Slug penetrates Reinforced Barrier. 29497_ Slug penetrates Sealed Heavy Doors. 29497_ EXIT=IDENTIFIED: SURFACE Map ----- +----------------------------------------------------+ | ?????????????????????????????????????????????????? | | ?????????????????????????????????????????????????? | | ?????????????????????????????????????????????????? | | ?????????????????????????????????????????????????? | | ?????????????????????????????????????????????????? | | ?????????????????????????????????????????????????? | | ?????????????????????????????????????????????????? | | ?????????????????????????????????????? ?????????? | | ?????????????????????????????????????? +????????? | | ?????????????????????????????????????? #????????? | | ##########???????????????????????????? #????????? | | #???????????????????????????? #????????? | | #???????????????????????????? #????????? | | """"""" #???????????????????????????? #????????? | | """Y""" #???????????????????????????? #????????? | | R #???????????????????????????? #????????? | | R #???????????????????????????? ##???????? | | " * #???????????????????????????# ????????? | | """ #???????????????????????????# #????????? | | """ #???????????????????###?????# #????????? | | " #??????##??########## ####### #????????? | | #????? "??" #????????? | | #??? "??" #????????? | | ##"""#+### "??" h #????????? | | # ^^^^^^ "??" =k #????????? | | # R "??" "@ =A* #????????? | | # "??" "" !h #????????? | | # "??" p k #????????? | | # # "??" h k#????????? | | # # "??" """ """h #????????? | | ### != "??" """T""" #????????? | | ########??########## ####### #????????? | | #???????????????###???### #????????? | | % ###########################"" #????????? | | %/ # #????????? | | ####+########## #"#### # #????????? | | #### # %# # +????????? | | ##?# # # " " # #????????? | | #??# # # """ """ # #????????? | | #### # # """ """ # #????????? | | !! *+ + # " " # #????????? | | ! [%####R# # [ # #????????? | | !#??# # ] # # #????????? | | #??# # # ! # #????????? | | ""T"" [#??# # ###########/##### ###### ### | | """"" #??# ######?????#### | | #??# #??????????# "" #?? | | #??# #??????????#""" #####+##?? | | ########## #??# #??????????#"F #????????? | | ?????????###??# #??????????#""" #????????? | +----------------------------------------------------+ Best States ------------- Heat Dissipation 110 Coolant Potential 120 Energy Generation 65 Energy Capacity 700 Matter Stores 425 Matter Capacity 425 Sight Range 24 Robot Scan Range 16 Terrain Scan Range 30 Terrain Scan Density 10 Jamming Range 16 Cloak Strength 4 Additional Mass Support 16 Corruption Block 20 Armor Coverage 1050 Resistance: TH 30 Resistance: EM 75 Core Shielding 90 Weapon Shielding 90 Melee Speed Boost 50 Phase Shifting 15 Evasion (%) 82 Targeting Accuracy 12 Melee Accuracy 12 Target Analysis 10 Core Analysis 8 Recoil Reduction 6 Offensive Hacking 49 Defensive Hacking 22 Relay Coupler Types 2 Relay Coupler Value 51 Authchip Count 4 Item Schematics ----------------- Femtoactuators | -2/Quarantine | Scanalyzed Cmb. Linear Gravjet | -2/Quarantine | Scanalyzed Exp. Weapon Shielding | -2/Section 7 | Scanalyzed Robot Schematics ------------------ None Fabricated ------------ IN-MT5's Pitchfork "Insurrection" | x1 | -6/Factory | Authchip IN-MT5's Pitchfork "Insurrection" | x1 | -6/Factory | Authchip Imp. Weapon Shielding | x2 | -6/Factory Linear Gravjet | x2 | -5/Factory | Preloaded Cld. Impulse Thruster | x1 | -5/Factory | Authchip Cld. Impulse Thruster | x1 | -5/Factory | Authchip Exp. Weapon Shielding | x1 | -4/Factory | Authchip Exp. Weapon Shielding | x1 | -4/Armory Cld. Impulse Thruster | x1 | -4/Armory | Authchip IN-MT5's Pitchfork "Insurrection" | x1 | -4/Armory Cld. Impulse Thruster | x1 | -3/Research | Authchip Cmb. Linear Gravjet | x2 | -3/Research CPS Tube | x1 | -3/Research Cld. Antigrav System | x1 | -3/Research Femtoactuators | x1 | -1/Access Femtoactuators | x1 | -1/Access Repaired ---------- Fusion Bomb Launcher | 49% | -6/Factory Imp. Medium Armor Plating | 64% | -6/Factory Imp. Powered Armor | 38% | -5/Factory | Broken Cld. Impulse Thruster | 40% | -5/Factory | Broken Cld. Impulse Thruster | 27% | -4/Armory Cld. Antigrav System | 99% | -3/Research | Broken Cmb. Linear Gravjet | 32% | -3/Testing Adv. Powered Armor | 60% | -3/Testing Cmb. Linear Gravjet | 12% | -2/Quarantine Adv. Powered Armor | 33% | -1/Access Studied --------- Antigrav Array | -2/Quarantine | Hacked Cmb. Linear Gravjet | -2/Quarantine | Hacked Mic. Antimatter Reactor | -1/Access | Hacked Alien Tech Used ----------------- Core Regenerator Integrated Mediator Core Stripper Phase Armor Phase Redirector Core Reset Matrix Integrated Reactor Integrated Dissipator LRC Matter Compressor LRC Storage Sigix Broadsword Achievements -------------- None Challenges ------------ None Game ------ Seed HypervelocityLatentDirector Manual? 1 Play Time 07:26:02 Cumulative 1021.7 hours Start 2026.08.14 @ 22:51:26 End 2026.08.17 @ 00:29:55 Sessions 7 Manual Loads 0 Difficulty Rogue Special Mode None Game No. 285 Rogue 285 Adventurer 0 Explorer 0 Win Type 2 Total 45 Types 13/9/11/2/2/0/4/1/1/2 Lore% 97 Gallery% 91 Achievement% 87 Wizard Run 0 Options --------- Layout 1 ASCII 0 Keyboard 0 Movement Mouse Keybinds 0 Fullscreen 2 Font 32/SmallcapsGlow Map View 50x35 Zoom Use 0% Tactical HUD 1 Map Filters NONE Filters NONE Steam 1 RUN: aea794ed-afa4-41d3-8bbd-9c214a27a422